{"text_format":"1","workbook":"xlsx","n_sheets":8,"sheets":["Instructions","Paste Copy","Contractor CP","Subcontractor1","Subcontractor2","Subcontractor3","Roll Up","info Grid"],"not_rendered":{"charts":0,"images":0,"macros":1,"external_links":0,"defined_names":0,"comments":1,"pivot_tables":0},"unopened":[],"bounds":{"document_bytes":16777216,"sheet_cells":100000,"rows_first":2000,"rows_last":500,"rows_between":2000,"halvings":0,"cell_chars":16384,"cell_head_chars":4096},"cells_cut":0,"cells_raw":0,"read":"whole","date_system":"1900"}

{"sheet":"Instructions","index":0,"n_rows":33,"n_cols":2,"rows_kept":33,"cut":false,"hidden":false,"merged":[]}
["Instructions"]
[null,"All light blue fields are unlocked for vendor input"]
[1,"Go to Subcontractor1 tab and enter in the Payroll Tax, Insurance & Fringe Benefits on Labor (Refer to UGC). "]
[2,"Enter the markup percentage for that subcontractor (Refer to UGC). "]
[3,"Enter the mark-up percentage for the lower tier subcontractors (Refer to UGC)."]
[4,"Enter the Material, Equipment and Labor Costs by cost code detail for subcontractor1. "]
[5,"Enter the Material, Equipment and Labor Costs by cost code, for each of that subcontractor's lower tier subcontractors."]
[6,"Repeat the same process for additional subcontractors and their lower tiers. "]
[7,"Once you have entered all subcontractors information, go the  Contractor CP tab and enter the percentage for Builders Rick Insurance (if applicable)."]
[8,"Enter the Mark Up/Fee (per CMAR contract CMAR or UGC)."]
[9,"Enter the percentage for performance and payment bond."]
[10,"If you are requesting a time extension, enter the days on this tab.  "]
[11,"If a time extension is requested and you are requesting general conditions associated with the days, enter the amount on this tab.  Note, concurrent delays due not warrant additional General Conditions."]
[12,"Enter all self-performed Material, Equipment and Labor.  "]
[13,"Once you have entered all the costs, click the Run Paste Copy button on the Contractor CP tab.  This prepares the data in the 'Paste Copy' tab for the cut/paste to PM Web performed in step 18."]
[14,"In PM Web, select Online Change Request under Change Management."]
[15,"Click on the +Add button"]
[16,"Complete the Company, Project, Commitment, Description, and Record # fields"]
[17,"In the Justification field, provide a sufficiently detailed justification."]
[18,"Under the Category field, select 'Change Order Proposal' from the drop down menu."]
[19,"Click the save icon at the top to save the header."]
[20,"Under the Details tab, deslect the 'Use Units' box"]
[21,"Return to this spreadsheet and go to the 'Paste Copy' tab.  Select and copy cells A2 to V33."]
[22,"In PM Web, click the Paste From Excel button."]
[23,"Click OK for the 'Use Ctrl+V to paste your data' pop up."]
[24,"Hold down the Ctrl button on your key board and press V to paste the data in PM Web."]
[25,"Click the save icon at the top."]
[26,"Verify the data in the 'Change Request Recap' section."]
[27,"Save this worksheet as a pdf or .xlsx file."]
[28,"Attach the pdf/xlsx copy of this worksheet and other backup under the 'Attachments' tab in PM Web."]
[29,"Click the Submit button"]
[]
[null,"Make sure you attach a copy of this Request form to the record. "]

{"sheet":"Paste Copy","index":1,"n_rows":34,"n_cols":100,"rows_kept":34,"cut":false,"hidden":false,"merged":[]}
["Line #","Attachments","Item","Description","Currency","Ext. Cost","Commitment Line","Cost Code","Cost Type","Days","Phase","WBS","Period","Assigned To","Manufacturer","Mfr. #","CE ID","CCO ID","Notes","Type of Markup","Markup","Capital Work Complete",null,null,null,null,null,null,null,null,null,null,null,null,null,null,null,null,null,null,null,null,null,null,null,null,null,null,null,null,null,null,null,null,null,null,null,null,null,null,null,null,null,null,null,null,null,null,null,null,null,null,null,null,null,null,null,null,"Line #","Attachments","Item","Description","Currency","Ext. Cost","Commitment Line","Cost Code","Cost Type","Days","Phase","WBS","Period","Assigned To","Manufacturer","Mfr. #","CE ID","CCO ID","Notes","Type of Markup","Markup","Capital Work Complete"]
["","",null,"","","",null,"",null,"",null,null,null,null,null,null,null,null,null,null,"","",null,null,null,null,null,null,null,null,null,null,null,null,null,null,null,null,null,null,null,null,null,null,null,null,null,null,null,null,null,null,null,null,null,null,null,null,null,null,null,null,null,null,null,null,null,null,null,null,null,null,null,null,null,null,null,null,{"$f":"IF(CF2<>\"\",1,\"\")","v":""},{"$f":"IFERROR(INDEX('info Grid'!E$2:E$33,SMALL(IF('info Grid'!$A$2:$A$33<>0,ROW('info Grid'!A$2:A$33)-ROW('info Grid'!A$2)+1),ROWS('info Grid'!A$2:A2))),\"\")","v":""},null,{"$f":"IFERROR(INDEX('info Grid'!C$2:C$33,SMALL(IF('info Grid'!$A$2:$A$33<>0,ROW('info Grid'!A$2:A$33)-ROW('info Grid'!A$2)+1),ROWS('info Grid'!A$2:A2))),\"\")","v":""},{"$f":"IFERROR(INDEX('info Grid'!D$2:D$33,SMALL(IF('info Grid'!$A$2:$A$33<>0,ROW('info Grid'!A$2:A$33)-ROW('info Grid'!A$2)+1),ROWS('info Grid'!A$2:A2))),\"\")","v":""},{"$f":"IFERROR(INDEX('info Grid'!A$2:A$33,SMALL(IF('info Grid'!$A$2:$A$33<>0,ROW('info Grid'!A$2:A$33)-ROW('info Grid'!A$2)+1),ROWS('info Grid'!A$2:A2))),\"\")","v":""},null,{"$f":"IFERROR(INDEX('info Grid'!B$2:B$33,SMALL(IF('info Grid'!$A$2:$A$33<>0,ROW('info Grid'!A$2:A$33)-ROW('info Grid'!A$2)+1),ROWS('info Grid'!A$2:A2))),\"\")","v":""},null,{"$f":"IFERROR(INDEX('info Grid'!$I$2:$I$33,SMALL(IF('info Grid'!$A$2:$A$33<>0,ROW('info Grid'!A$2:A$33)-ROW('info Grid'!A$2)+1),ROWS('info Grid'!A$2:A2))),\"\")","v":""},null,null,null,null,null,null,null,null,null,null,{"$f":"IFERROR(INDEX('info Grid'!F$2:F$33,SMALL(IF('info Grid'!$A$2:$A$33<>0,ROW('info Grid'!A$2:A$33)-ROW('info Grid'!A$2)+1),ROWS('info Grid'!A$2:A2))),\"\")","v":""},{"$f":"IFERROR(INDEX('info Grid'!G$2:G$33,SMALL(IF('info Grid'!$A$2:$A$33<>0,ROW('info Grid'!A$2:A$33)-ROW('info Grid'!A$2)+1),ROWS('info Grid'!A$2:A2))),\"\")","v":""}]
["","",null,"","","",null,"",null,"",null,null,null,null,null,null,null,null,null,null,"","",null,null,null,null,null,null,null,null,null,null,null,null,null,null,null,null,null,null,null,null,null,null,null,null,null,null,null,null,null,null,null,null,null,null,null,null,null,null,null,null,null,null,null,null,null,null,null,null,null,null,null,null,null,null,null,null,{"$f":"IF(CF3<>\"\",2,\"\")","v":""},{"$f":"IFERROR(INDEX('info Grid'!E$2:E$33,SMALL(IF('info Grid'!$A$2:$A$33<>0,ROW('info Grid'!A$2:A$33)-ROW('info Grid'!A$2)+1),ROWS('info Grid'!A$2:A3))),\"\")","v":""},null,{"$f":"IFERROR(INDEX('info Grid'!C$2:C$33,SMALL(IF('info Grid'!$A$2:$A$33<>0,ROW('info Grid'!A$2:A$33)-ROW('info Grid'!A$2)+1),ROWS('info Grid'!A$2:A3))),\"\")","v":""},{"$f":"IFERROR(INDEX('info Grid'!D$2:D$33,SMALL(IF('info Grid'!$A$2:$A$33<>0,ROW('info Grid'!A$2:A$33)-ROW('info Grid'!A$2)+1),ROWS('info Grid'!A$2:A3))),\"\")","v":""},{"$f":"IFERROR(INDEX('info Grid'!A$2:A$33,SMALL(IF('info Grid'!$A$2:$A$33<>0,ROW('info Grid'!A$2:A$33)-ROW('info Grid'!A$2)+1),ROWS('info Grid'!A$2:A3))),\"\")","v":""},null,{"$f":"IFERROR(INDEX('info Grid'!B$2:B$33,SMALL(IF('info Grid'!$A$2:$A$33<>0,ROW('info Grid'!A$2:A$33)-ROW('info Grid'!A$2)+1),ROWS('info Grid'!B$2:B3))),\"\")","v":""},null,{"$f":"IFERROR(INDEX('info Grid'!$I$2:$I$33,SMALL(IF('info Grid'!$A$2:$A$33<>0,ROW('info Grid'!A$2:A$33)-ROW('info Grid'!A$2)+1),ROWS('info Grid'!A$2:A3))),\"\")","v":""},null,null,null,null,null,null,null,null,null,null,{"$f":"IFERROR(INDEX('info Grid'!F$2:F$33,SMALL(IF('info Grid'!$A$2:$A$33<>0,ROW('info Grid'!A$2:A$33)-ROW('info Grid'!A$2)+1),ROWS('info Grid'!A$2:A3))),\"\")","v":""},{"$f":"IFERROR(INDEX('info Grid'!G$2:G$33,SMALL(IF('info Grid'!$A$2:$A$33<>0,ROW('info Grid'!A$2:A$33)-ROW('info Grid'!A$2)+1),ROWS('info Grid'!A$2:A3))),\"\")","v":""}]
["","",null,"","","",null,"",null,"",null,null,null,null,null,null,null,null,null,null,"","",null,null,null,null,null,null,null,null,null,null,null,null,null,null,null,null,null,null,null,null,null,null,null,null,null,null,null,null,null,null,null,null,null,null,null,null,null,null,null,null,null,null,null,null,null,null,null,null,null,null,null,null,null,null,null,null,{"$f":"IF(CF4<>\"\",3,\"\")","v":""},{"$f":"IFERROR(INDEX('info Grid'!E$2:E$33,SMALL(IF('info Grid'!$A$2:$A$33<>0,ROW('info Grid'!A$2:A$33)-ROW('info Grid'!A$2)+1),ROWS('info Grid'!A$2:A4))),\"\")","v":""},null,{"$f":"IFERROR(INDEX('info Grid'!C$2:C$33,SMALL(IF('info Grid'!$A$2:$A$33<>0,ROW('info Grid'!A$2:A$33)-ROW('info Grid'!A$2)+1),ROWS('info Grid'!A$2:A4))),\"\")","v":""},{"$f":"IFERROR(INDEX('info Grid'!D$2:D$33,SMALL(IF('info Grid'!$A$2:$A$33<>0,ROW('info Grid'!A$2:A$33)-ROW('info Grid'!A$2)+1),ROWS('info Grid'!A$2:A4))),\"\")","v":""},{"$f":"IFERROR(INDEX('info Grid'!A$2:A$33,SMALL(IF('info Grid'!$A$2:$A$33<>0,ROW('info Grid'!A$2:A$33)-ROW('info Grid'!A$2)+1),ROWS('info Grid'!A$2:A4))),\"\")","v":""},null,{"$f":"IFERROR(INDEX('info Grid'!B$2:B$33,SMALL(IF('info Grid'!$A$2:$A$33<>0,ROW('info Grid'!A$2:A$33)-ROW('info Grid'!A$2)+1),ROWS('info Grid'!B$2:B4))),\"\")","v":""},null,{"$f":"IFERROR(INDEX('info Grid'!$I$2:$I$33,SMALL(IF('info Grid'!$A$2:$A$33<>0,ROW('info Grid'!A$2:A$33)-ROW('info Grid'!A$2)+1),ROWS('info Grid'!A$2:A4))),\"\")","v":""},null,null,null,null,null,null,null,null,null,null,{"$f":"IFERROR(INDEX('info Grid'!F$2:F$33,SMALL(IF('info Grid'!$A$2:$A$33<>0,ROW('info Grid'!A$2:A$33)-ROW('info Grid'!A$2)+1),ROWS('info Grid'!A$2:A4))),\"\")","v":""},{"$f":"IFERROR(INDEX('info Grid'!G$2:G$33,SMALL(IF('info Grid'!$A$2:$A$33<>0,ROW('info Grid'!A$2:A$33)-ROW('info Grid'!A$2)+1),ROWS('info Grid'!A$2:A4))),\"\")","v":""}]
["","",null,"","","",null,"",null,"",null,null,null,null,null,null,null,null,null,null,"","",null,null,null,null,null,null,null,null,null,null,null,null,null,null,null,null,null,null,null,null,null,null,null,null,null,null,null,null,null,null,null,null,null,null,null,null,null,null,null,null,null,null,null,null,null,null,null,null,null,null,null,null,null,null,null,null,{"$f":"IF(CF5<>\"\",4,\"\")","v":""},{"$f":"IFERROR(INDEX('info Grid'!E$2:E$33,SMALL(IF('info Grid'!$A$2:$A$33<>0,ROW('info Grid'!A$2:A$33)-ROW('info Grid'!A$2)+1),ROWS('info Grid'!A$2:A5))),\"\")","v":""},null,{"$f":"IFERROR(INDEX('info Grid'!C$2:C$33,SMALL(IF('info Grid'!$A$2:$A$33<>0,ROW('info Grid'!A$2:A$33)-ROW('info Grid'!A$2)+1),ROWS('info Grid'!A$2:A5))),\"\")","v":""},{"$f":"IFERROR(INDEX('info Grid'!D$2:D$33,SMALL(IF('info Grid'!$A$2:$A$33<>0,ROW('info Grid'!A$2:A$33)-ROW('info Grid'!A$2)+1),ROWS('info Grid'!A$2:A5))),\"\")","v":""},{"$f":"IFERROR(INDEX('info Grid'!A$2:A$33,SMALL(IF('info Grid'!$A$2:$A$33<>0,ROW('info Grid'!A$2:A$33)-ROW('info Grid'!A$2)+1),ROWS('info Grid'!A$2:A5))),\"\")","v":""},null,{"$f":"IFERROR(INDEX('info Grid'!B$2:B$33,SMALL(IF('info Grid'!$A$2:$A$33<>0,ROW('info Grid'!A$2:A$33)-ROW('info Grid'!A$2)+1),ROWS('info Grid'!B$2:B5))),\"\")","v":""},null,{"$f":"IFERROR(INDEX('info Grid'!$I$2:$I$33,SMALL(IF('info Grid'!$A$2:$A$33<>0,ROW('info Grid'!A$2:A$33)-ROW('info Grid'!A$2)+1),ROWS('info Grid'!A$2:A5))),\"\")","v":""},null,null,null,null,null,null,null,null,null,null,{"$f":"IFERROR(INDEX('info Grid'!F$2:F$33,SMALL(IF('info Grid'!$A$2:$A$33<>0,ROW('info Grid'!A$2:A$33)-ROW('info Grid'!A$2)+1),ROWS('info Grid'!A$2:A5))),\"\")","v":""},{"$f":"IFERROR(INDEX('info Grid'!G$2:G$33,SMALL(IF('info Grid'!$A$2:$A$33<>0,ROW('info Grid'!A$2:A$33)-ROW('info Grid'!A$2)+1),ROWS('info Grid'!A$2:A5))),\"\")","v":""}]
["","",null,"","","",null,"",null,"",null,null,null,null,null,null,null,null,null,null,"","",null,null,null,null,null,null,null,null,null,null,null,null,null,null,null,null,null,null,null,null,null,null,null,null,null,null,null,null,null,null,null,null,null,null,null,null,null,null,null,null,null,null,null,null,null,null,null,null,null,null,null,null,null,null,null,null,{"$f":"IF(CF6<>\"\",5,\"\")","v":""},{"$f":"IFERROR(INDEX('info Grid'!E$2:E$33,SMALL(IF('info Grid'!$A$2:$A$33<>0,ROW('info Grid'!A$2:A$33)-ROW('info Grid'!A$2)+1),ROWS('info Grid'!A$2:A6))),\"\")","v":""},null,{"$f":"IFERROR(INDEX('info Grid'!C$2:C$33,SMALL(IF('info Grid'!$A$2:$A$33<>0,ROW('info Grid'!A$2:A$33)-ROW('info Grid'!A$2)+1),ROWS('info Grid'!A$2:A6))),\"\")","v":""},{"$f":"IFERROR(INDEX('info Grid'!D$2:D$33,SMALL(IF('info Grid'!$A$2:$A$33<>0,ROW('info Grid'!A$2:A$33)-ROW('info Grid'!A$2)+1),ROWS('info Grid'!A$2:A6))),\"\")","v":""},{"$f":"IFERROR(INDEX('info Grid'!A$2:A$33,SMALL(IF('info Grid'!$A$2:$A$33<>0,ROW('info Grid'!A$2:A$33)-ROW('info Grid'!A$2)+1),ROWS('info Grid'!A$2:A6))),\"\")","v":""},null,{"$f":"IFERROR(INDEX('info Grid'!B$2:B$33,SMALL(IF('info Grid'!$A$2:$A$33<>0,ROW('info Grid'!A$2:A$33)-ROW('info Grid'!A$2)+1),ROWS('info Grid'!B$2:B6))),\"\")","v":""},null,{"$f":"IFERROR(INDEX('info Grid'!$I$2:$I$33,SMALL(IF('info Grid'!$A$2:$A$33<>0,ROW('info Grid'!A$2:A$33)-ROW('info Grid'!A$2)+1),ROWS('info Grid'!A$2:A6))),\"\")","v":""},null,null,null,null,null,null,null,null,null,null,{"$f":"IFERROR(INDEX('info Grid'!F$2:F$33,SMALL(IF('info Grid'!$A$2:$A$33<>0,ROW('info Grid'!A$2:A$33)-ROW('info Grid'!A$2)+1),ROWS('info Grid'!A$2:A6))),\"\")","v":""},{"$f":"IFERROR(INDEX('info Grid'!G$2:G$33,SMALL(IF('info Grid'!$A$2:$A$33<>0,ROW('info Grid'!A$2:A$33)-ROW('info Grid'!A$2)+1),ROWS('info Grid'!A$2:A6))),\"\")","v":""}]
["","",null,"","","",null,"",null,"",null,null,null,null,null,null,null,null,null,null,"","",null,null,null,null,null,null,null,null,null,null,null,null,null,null,null,null,null,null,null,null,null,null,null,null,null,null,null,null,null,null,null,null,null,null,null,null,null,null,null,null,null,null,null,null,null,null,null,null,null,null,null,null,null,null,null,null,{"$f":"IF(CF7<>\"\",6,\"\")","v":""},{"$f":"IFERROR(INDEX('info Grid'!E$2:E$33,SMALL(IF('info Grid'!$A$2:$A$33<>0,ROW('info Grid'!A$2:A$33)-ROW('info Grid'!A$2)+1),ROWS('info Grid'!A$2:A7))),\"\")","v":""},null,{"$f":"IFERROR(INDEX('info Grid'!C$2:C$33,SMALL(IF('info Grid'!$A$2:$A$33<>0,ROW('info Grid'!A$2:A$33)-ROW('info Grid'!A$2)+1),ROWS('info Grid'!A$2:A7))),\"\")","v":""},{"$f":"IFERROR(INDEX('info Grid'!D$2:D$33,SMALL(IF('info Grid'!$A$2:$A$33<>0,ROW('info Grid'!A$2:A$33)-ROW('info Grid'!A$2)+1),ROWS('info Grid'!A$2:A7))),\"\")","v":""},{"$f":"IFERROR(INDEX('info Grid'!A$2:A$33,SMALL(IF('info Grid'!$A$2:$A$33<>0,ROW('info Grid'!A$2:A$33)-ROW('info Grid'!A$2)+1),ROWS('info Grid'!A$2:A7))),\"\")","v":""},null,{"$f":"IFERROR(INDEX('info Grid'!B$2:B$33,SMALL(IF('info Grid'!$A$2:$A$33<>0,ROW('info Grid'!A$2:A$33)-ROW('info Grid'!A$2)+1),ROWS('info Grid'!B$2:B7))),\"\")","v":""},null,{"$f":"IFERROR(INDEX('info Grid'!$I$2:$I$33,SMALL(IF('info Grid'!$A$2:$A$33<>0,ROW('info Grid'!A$2:A$33)-ROW('info Grid'!A$2)+1),ROWS('info Grid'!A$2:A7))),\"\")","v":""},null,null,null,null,null,null,null,null,null,null,{"$f":"IFERROR(INDEX('info Grid'!F$2:F$33,SMALL(IF('info Grid'!$A$2:$A$33<>0,ROW('info Grid'!A$2:A$33)-ROW('info Grid'!A$2)+1),ROWS('info Grid'!A$2:A7))),\"\")","v":""},{"$f":"IFERROR(INDEX('info Grid'!G$2:G$33,SMALL(IF('info Grid'!$A$2:$A$33<>0,ROW('info Grid'!A$2:A$33)-ROW('info Grid'!A$2)+1),ROWS('info Grid'!A$2:A7))),\"\")","v":""}]
["","",null,"","","",null,"",null,"",null,null,null,null,null,null,null,null,null,null,"","",null,null,null,null,null,null,null,null,null,null,null,null,null,null,null,null,null,null,null,null,null,null,null,null,null,null,null,null,null,null,null,null,null,null,null,null,null,null,null,null,null,null,null,null,null,null,null,null,null,null,null,null,null,null,null,null,{"$f":"IF(CF8<>\"\",7,\"\")","v":""},{"$f":"IFERROR(INDEX('info Grid'!E$2:E$33,SMALL(IF('info Grid'!$A$2:$A$33<>0,ROW('info Grid'!A$2:A$33)-ROW('info Grid'!A$2)+1),ROWS('info Grid'!A$2:A8))),\"\")","v":""},null,{"$f":"IFERROR(INDEX('info Grid'!C$2:C$33,SMALL(IF('info Grid'!$A$2:$A$33<>0,ROW('info Grid'!A$2:A$33)-ROW('info Grid'!A$2)+1),ROWS('info Grid'!A$2:A8))),\"\")","v":""},{"$f":"IFERROR(INDEX('info Grid'!D$2:D$33,SMALL(IF('info Grid'!$A$2:$A$33<>0,ROW('info Grid'!A$2:A$33)-ROW('info Grid'!A$2)+1),ROWS('info Grid'!A$2:A8))),\"\")","v":""},{"$f":"IFERROR(INDEX('info Grid'!A$2:A$33,SMALL(IF('info Grid'!$A$2:$A$33<>0,ROW('info Grid'!A$2:A$33)-ROW('info Grid'!A$2)+1),ROWS('info Grid'!A$2:A8))),\"\")","v":""},null,{"$f":"IFERROR(INDEX('info Grid'!B$2:B$33,SMALL(IF('info Grid'!$A$2:$A$33<>0,ROW('info Grid'!A$2:A$33)-ROW('info Grid'!A$2)+1),ROWS('info Grid'!B$2:B8))),\"\")","v":""},null,{"$f":"IFERROR(INDEX('info Grid'!$I$2:$I$33,SMALL(IF('info Grid'!$A$2:$A$33<>0,ROW('info Grid'!A$2:A$33)-ROW('info Grid'!A$2)+1),ROWS('info Grid'!A$2:A8))),\"\")","v":""},null,null,null,null,null,null,null,null,null,null,{"$f":"IFERROR(INDEX('info Grid'!F$2:F$33,SMALL(IF('info Grid'!$A$2:$A$33<>0,ROW('info Grid'!A$2:A$33)-ROW('info Grid'!A$2)+1),ROWS('info Grid'!A$2:A8))),\"\")","v":""},{"$f":"IFERROR(INDEX('info Grid'!G$2:G$33,SMALL(IF('info Grid'!$A$2:$A$33<>0,ROW('info Grid'!A$2:A$33)-ROW('info Grid'!A$2)+1),ROWS('info Grid'!A$2:A8))),\"\")","v":""}]
["","",null,"","","",null,"",null,"",null,null,null,null,null,null,null,null,null,null,"","",null,null,null,null,null,null,null,null,null,null,null,null,null,null,null,null,null,null,null,null,null,null,null,null,null,null,null,null,null,null,null,null,null,null,null,null,null,null,null,null,null,null,null,null,null,null,null,null,null,null,null,null,null,null,null,null,{"$f":"IF(CF9<>\"\",8,\"\")","v":""},{"$f":"IFERROR(INDEX('info Grid'!E$2:E$33,SMALL(IF('info Grid'!$A$2:$A$33<>0,ROW('info Grid'!A$2:A$33)-ROW('info Grid'!A$2)+1),ROWS('info Grid'!A$2:A9))),\"\")","v":""},null,{"$f":"IFERROR(INDEX('info Grid'!C$2:C$33,SMALL(IF('info Grid'!$A$2:$A$33<>0,ROW('info Grid'!A$2:A$33)-ROW('info Grid'!A$2)+1),ROWS('info Grid'!A$2:A9))),\"\")","v":""},{"$f":"IFERROR(INDEX('info Grid'!D$2:D$33,SMALL(IF('info Grid'!$A$2:$A$33<>0,ROW('info Grid'!A$2:A$33)-ROW('info Grid'!A$2)+1),ROWS('info Grid'!A$2:A9))),\"\")","v":""},{"$f":"IFERROR(INDEX('info Grid'!A$2:A$33,SMALL(IF('info Grid'!$A$2:$A$33<>0,ROW('info Grid'!A$2:A$33)-ROW('info Grid'!A$2)+1),ROWS('info Grid'!A$2:A9))),\"\")","v":""},null,{"$f":"IFERROR(INDEX('info Grid'!B$2:B$33,SMALL(IF('info Grid'!$A$2:$A$33<>0,ROW('info Grid'!A$2:A$33)-ROW('info Grid'!A$2)+1),ROWS('info Grid'!B$2:B9))),\"\")","v":""},null,{"$f":"IFERROR(INDEX('info Grid'!$I$2:$I$33,SMALL(IF('info Grid'!$A$2:$A$33<>0,ROW('info Grid'!A$2:A$33)-ROW('info Grid'!A$2)+1),ROWS('info Grid'!A$2:A9))),\"\")","v":""},null,null,null,null,null,null,null,null,null,null,{"$f":"IFERROR(INDEX('info Grid'!F$2:F$33,SMALL(IF('info Grid'!$A$2:$A$33<>0,ROW('info Grid'!A$2:A$33)-ROW('info Grid'!A$2)+1),ROWS('info Grid'!A$2:A9))),\"\")","v":""},{"$f":"IFERROR(INDEX('info Grid'!G$2:G$33,SMALL(IF('info Grid'!$A$2:$A$33<>0,ROW('info Grid'!A$2:A$33)-ROW('info Grid'!A$2)+1),ROWS('info Grid'!A$2:A9))),\"\")","v":""}]
["","",null,"","","",null,"",null,"",null,null,null,null,null,null,null,null,null,null,"","",null,null,null,null,null,null,null,null,null,null,null,null,null,null,null,null,null,null,null,null,null,null,null,null,null,null,null,null,null,null,null,null,null,null,null,null,null,null,null,null,null,null,null,null,null,null,null,null,null,null,null,null,null,null,null,null,{"$f":"IF(CF10<>\"\",9,\"\")","v":""},{"$f":"IFERROR(INDEX('info Grid'!E$2:E$33,SMALL(IF('info Grid'!$A$2:$A$33<>0,ROW('info Grid'!A$2:A$33)-ROW('info Grid'!A$2)+1),ROWS('info Grid'!A$2:A10))),\"\")","v":""},null,{"$f":"IFERROR(INDEX('info Grid'!C$2:C$33,SMALL(IF('info Grid'!$A$2:$A$33<>0,ROW('info Grid'!A$2:A$33)-ROW('info Grid'!A$2)+1),ROWS('info Grid'!A$2:A10))),\"\")","v":""},{"$f":"IFERROR(INDEX('info Grid'!D$2:D$33,SMALL(IF('info Grid'!$A$2:$A$33<>0,ROW('info Grid'!A$2:A$33)-ROW('info Grid'!A$2)+1),ROWS('info Grid'!A$2:A10))),\"\")","v":""},{"$f":"IFERROR(INDEX('info Grid'!A$2:A$33,SMALL(IF('info Grid'!$A$2:$A$33<>0,ROW('info Grid'!A$2:A$33)-ROW('info Grid'!A$2)+1),ROWS('info Grid'!A$2:A10))),\"\")","v":""},null,{"$f":"IFERROR(INDEX('info Grid'!B$2:B$33,SMALL(IF('info Grid'!$A$2:$A$33<>0,ROW('info Grid'!A$2:A$33)-ROW('info Grid'!A$2)+1),ROWS('info Grid'!B$2:B10))),\"\")","v":""},null,{"$f":"IFERROR(INDEX('info Grid'!$I$2:$I$33,SMALL(IF('info Grid'!$A$2:$A$33<>0,ROW('info Grid'!A$2:A$33)-ROW('info Grid'!A$2)+1),ROWS('info Grid'!A$2:A10))),\"\")","v":""},null,null,null,null,null,null,null,null,null,null,{"$f":"IFERROR(INDEX('info Grid'!F$2:F$33,SMALL(IF('info Grid'!$A$2:$A$33<>0,ROW('info Grid'!A$2:A$33)-ROW('info Grid'!A$2)+1),ROWS('info Grid'!A$2:A10))),\"\")","v":""},{"$f":"IFERROR(INDEX('info Grid'!G$2:G$33,SMALL(IF('info Grid'!$A$2:$A$33<>0,ROW('info Grid'!A$2:A$33)-ROW('info Grid'!A$2)+1),ROWS('info Grid'!A$2:A10))),\"\")","v":""}]
["","",null,"","","",null,"",null,"",null,null,null,null,null,null,null,null,null,null,"","",null,null,null,null,null,null,null,null,null,null,null,null,null,null,null,null,null,null,null,null,null,null,null,null,null,null,null,null,null,null,null,null,null,null,null,null,null,null,null,null,null,null,null,null,null,null,null,null,null,null,null,null,null,null,null,null,{"$f":"IF(CF11<>\"\",10,\"\")","v":""},{"$f":"IFERROR(INDEX('info Grid'!E$2:E$33,SMALL(IF('info Grid'!$A$2:$A$33<>0,ROW('info Grid'!A$2:A$33)-ROW('info Grid'!A$2)+1),ROWS('info Grid'!A$2:A11))),\"\")","v":""},null,{"$f":"IFERROR(INDEX('info Grid'!C$2:C$33,SMALL(IF('info Grid'!$A$2:$A$33<>0,ROW('info Grid'!A$2:A$33)-ROW('info Grid'!A$2)+1),ROWS('info Grid'!A$2:A11))),\"\")","v":""},{"$f":"IFERROR(INDEX('info Grid'!D$2:D$33,SMALL(IF('info Grid'!$A$2:$A$33<>0,ROW('info Grid'!A$2:A$33)-ROW('info Grid'!A$2)+1),ROWS('info Grid'!A$2:A11))),\"\")","v":""},{"$f":"IFERROR(INDEX('info Grid'!A$2:A$33,SMALL(IF('info Grid'!$A$2:$A$33<>0,ROW('info Grid'!A$2:A$33)-ROW('info Grid'!A$2)+1),ROWS('info Grid'!A$2:A11))),\"\")","v":""},null,{"$f":"IFERROR(INDEX('info Grid'!B$2:B$33,SMALL(IF('info Grid'!$A$2:$A$33<>0,ROW('info Grid'!A$2:A$33)-ROW('info Grid'!A$2)+1),ROWS('info Grid'!B$2:B11))),\"\")","v":""},null,{"$f":"IFERROR(INDEX('info Grid'!$I$2:$I$33,SMALL(IF('info Grid'!$A$2:$A$33<>0,ROW('info Grid'!A$2:A$33)-ROW('info Grid'!A$2)+1),ROWS('info Grid'!A$2:A11))),\"\")","v":""},null,null,null,null,null,null,null,null,null,null,{"$f":"IFERROR(INDEX('info Grid'!F$2:F$33,SMALL(IF('info Grid'!$A$2:$A$33<>0,ROW('info Grid'!A$2:A$33)-ROW('info Grid'!A$2)+1),ROWS('info Grid'!A$2:A11))),\"\")","v":""},{"$f":"IFERROR(INDEX('info Grid'!G$2:G$33,SMALL(IF('info Grid'!$A$2:$A$33<>0,ROW('info Grid'!A$2:A$33)-ROW('info Grid'!A$2)+1),ROWS('info Grid'!A$2:A11))),\"\")","v":""}]
["","",null,"","","",null,"",null,"",null,null,null,null,null,null,null,null,null,null,"","",null,null,null,null,null,null,null,null,null,null,null,null,null,null,null,null,null,null,null,null,null,null,null,null,null,null,null,null,null,null,null,null,null,null,null,null,null,null,null,null,null,null,null,null,null,null,null,null,null,null,null,null,null,null,null,null,{"$f":"IF(CF12<>\"\",11,\"\")","v":""},{"$f":"IFERROR(INDEX('info Grid'!E$2:E$33,SMALL(IF('info Grid'!$A$2:$A$33<>0,ROW('info Grid'!A$2:A$33)-ROW('info Grid'!A$2)+1),ROWS('info Grid'!A$2:A12))),\"\")","v":""},null,{"$f":"IFERROR(INDEX('info Grid'!C$2:C$33,SMALL(IF('info Grid'!$A$2:$A$33<>0,ROW('info Grid'!A$2:A$33)-ROW('info Grid'!A$2)+1),ROWS('info Grid'!A$2:A12))),\"\")","v":""},{"$f":"IFERROR(INDEX('info Grid'!D$2:D$33,SMALL(IF('info Grid'!$A$2:$A$33<>0,ROW('info Grid'!A$2:A$33)-ROW('info Grid'!A$2)+1),ROWS('info Grid'!A$2:A12))),\"\")","v":""},{"$f":"IFERROR(INDEX('info Grid'!A$2:A$33,SMALL(IF('info Grid'!$A$2:$A$33<>0,ROW('info Grid'!A$2:A$33)-ROW('info Grid'!A$2)+1),ROWS('info Grid'!A$2:A12))),\"\")","v":""},null,{"$f":"IFERROR(INDEX('info Grid'!B$2:B$33,SMALL(IF('info Grid'!$A$2:$A$33<>0,ROW('info Grid'!A$2:A$33)-ROW('info Grid'!A$2)+1),ROWS('info Grid'!B$2:B12))),\"\")","v":""},null,{"$f":"IFERROR(INDEX('info Grid'!$I$2:$I$33,SMALL(IF('info Grid'!$A$2:$A$33<>0,ROW('info Grid'!A$2:A$33)-ROW('info Grid'!A$2)+1),ROWS('info Grid'!A$2:A12))),\"\")","v":""},null,null,null,null,null,null,null,null,null,null,{"$f":"IFERROR(INDEX('info Grid'!F$2:F$33,SMALL(IF('info Grid'!$A$2:$A$33<>0,ROW('info Grid'!A$2:A$33)-ROW('info Grid'!A$2)+1),ROWS('info Grid'!A$2:A12))),\"\")","v":""},{"$f":"IFERROR(INDEX('info Grid'!G$2:G$33,SMALL(IF('info Grid'!$A$2:$A$33<>0,ROW('info Grid'!A$2:A$33)-ROW('info Grid'!A$2)+1),ROWS('info Grid'!A$2:A12))),\"\")","v":""}]
["","",null,"","","",null,"",null,"",null,null,null,null,null,null,null,null,null,null,"","",null,null,null,null,null,null,null,null,null,null,null,null,null,null,null,null,null,null,null,null,null,null,null,null,null,null,null,null,null,null,null,null,null,null,null,null,null,null,null,null,null,null,null,null,null,null,null,null,null,null,null,null,null,null,null,null,{"$f":"IF(CF13<>\"\",12,\"\")","v":""},{"$f":"IFERROR(INDEX('info Grid'!E$2:E$33,SMALL(IF('info Grid'!$A$2:$A$33<>0,ROW('info Grid'!A$2:A$33)-ROW('info Grid'!A$2)+1),ROWS('info Grid'!A$2:A13))),\"\")","v":""},null,{"$f":"IFERROR(INDEX('info Grid'!C$2:C$33,SMALL(IF('info Grid'!$A$2:$A$33<>0,ROW('info Grid'!A$2:A$33)-ROW('info Grid'!A$2)+1),ROWS('info Grid'!A$2:A13))),\"\")","v":""},{"$f":"IFERROR(INDEX('info Grid'!D$2:D$33,SMALL(IF('info Grid'!$A$2:$A$33<>0,ROW('info Grid'!A$2:A$33)-ROW('info Grid'!A$2)+1),ROWS('info Grid'!A$2:A13))),\"\")","v":""},{"$f":"IFERROR(INDEX('info Grid'!A$2:A$33,SMALL(IF('info Grid'!$A$2:$A$33<>0,ROW('info Grid'!A$2:A$33)-ROW('info Grid'!A$2)+1),ROWS('info Grid'!A$2:A13))),\"\")","v":""},null,{"$f":"IFERROR(INDEX('info Grid'!B$2:B$33,SMALL(IF('info Grid'!$A$2:$A$33<>0,ROW('info Grid'!A$2:A$33)-ROW('info Grid'!A$2)+1),ROWS('info Grid'!B$2:B13))),\"\")","v":""},null,{"$f":"IFERROR(INDEX('info Grid'!$I$2:$I$33,SMALL(IF('info Grid'!$A$2:$A$33<>0,ROW('info Grid'!A$2:A$33)-ROW('info Grid'!A$2)+1),ROWS('info Grid'!A$2:A13))),\"\")","v":""},null,null,null,null,null,null,null,null,null,null,{"$f":"IFERROR(INDEX('info Grid'!F$2:F$33,SMALL(IF('info Grid'!$A$2:$A$33<>0,ROW('info Grid'!A$2:A$33)-ROW('info Grid'!A$2)+1),ROWS('info Grid'!A$2:A13))),\"\")","v":""},{"$f":"IFERROR(INDEX('info Grid'!G$2:G$33,SMALL(IF('info Grid'!$A$2:$A$33<>0,ROW('info Grid'!A$2:A$33)-ROW('info Grid'!A$2)+1),ROWS('info Grid'!A$2:A13))),\"\")","v":""}]
["","",null,"","","",null,"",null,"",null,null,null,null,null,null,null,null,null,null,"","",null,null,null,null,null,null,null,null,null,null,null,null,null,null,null,null,null,null,null,null,null,null,null,null,null,null,null,null,null,null,null,null,null,null,null,null,null,null,null,null,null,null,null,null,null,null,null,null,null,null,null,null,null,null,null,null,{"$f":"IF(CF14<>\"\",13,\"\")","v":""},{"$f":"IFERROR(INDEX('info Grid'!E$2:E$33,SMALL(IF('info Grid'!$A$2:$A$33<>0,ROW('info Grid'!A$2:A$33)-ROW('info Grid'!A$2)+1),ROWS('info Grid'!A$2:A14))),\"\")","v":""},null,{"$f":"IFERROR(INDEX('info Grid'!C$2:C$33,SMALL(IF('info Grid'!$A$2:$A$33<>0,ROW('info Grid'!A$2:A$33)-ROW('info Grid'!A$2)+1),ROWS('info Grid'!A$2:A14))),\"\")","v":""},{"$f":"IFERROR(INDEX('info Grid'!D$2:D$33,SMALL(IF('info Grid'!$A$2:$A$33<>0,ROW('info Grid'!A$2:A$33)-ROW('info Grid'!A$2)+1),ROWS('info Grid'!A$2:A14))),\"\")","v":""},{"$f":"IFERROR(INDEX('info Grid'!A$2:A$33,SMALL(IF('info Grid'!$A$2:$A$33<>0,ROW('info Grid'!A$2:A$33)-ROW('info Grid'!A$2)+1),ROWS('info Grid'!A$2:A14))),\"\")","v":""},null,{"$f":"IFERROR(INDEX('info Grid'!B$2:B$33,SMALL(IF('info Grid'!$A$2:$A$33<>0,ROW('info Grid'!A$2:A$33)-ROW('info Grid'!A$2)+1),ROWS('info Grid'!B$2:B14))),\"\")","v":""},null,{"$f":"IFERROR(INDEX('info Grid'!$I$2:$I$33,SMALL(IF('info Grid'!$A$2:$A$33<>0,ROW('info Grid'!A$2:A$33)-ROW('info Grid'!A$2)+1),ROWS('info Grid'!A$2:A14))),\"\")","v":""},null,null,null,null,null,null,null,null,null,null,{"$f":"IFERROR(INDEX('info Grid'!F$2:F$33,SMALL(IF('info Grid'!$A$2:$A$33<>0,ROW('info Grid'!A$2:A$33)-ROW('info Grid'!A$2)+1),ROWS('info Grid'!A$2:A14))),\"\")","v":""},{"$f":"IFERROR(INDEX('info Grid'!G$2:G$33,SMALL(IF('info Grid'!$A$2:$A$33<>0,ROW('info Grid'!A$2:A$33)-ROW('info Grid'!A$2)+1),ROWS('info Grid'!A$2:A14))),\"\")","v":""}]
["","",null,"","","",null,"",null,"",null,null,null,null,null,null,null,null,null,null,"","",null,null,null,null,null,null,null,null,null,null,null,null,null,null,null,null,null,null,null,null,null,null,null,null,null,null,null,null,null,null,null,null,null,null,null,null,null,null,null,null,null,null,null,null,null,null,null,null,null,null,null,null,null,null,null,null,{"$f":"IF(CF15<>\"\",14,\"\")","v":""},{"$f":"IFERROR(INDEX('info Grid'!E$2:E$33,SMALL(IF('info Grid'!$A$2:$A$33<>0,ROW('info Grid'!A$2:A$33)-ROW('info Grid'!A$2)+1),ROWS('info Grid'!A$2:A15))),\"\")","v":""},null,{"$f":"IFERROR(INDEX('info Grid'!C$2:C$33,SMALL(IF('info Grid'!$A$2:$A$33<>0,ROW('info Grid'!A$2:A$33)-ROW('info Grid'!A$2)+1),ROWS('info Grid'!A$2:A15))),\"\")","v":""},{"$f":"IFERROR(INDEX('info Grid'!D$2:D$33,SMALL(IF('info Grid'!$A$2:$A$33<>0,ROW('info Grid'!A$2:A$33)-ROW('info Grid'!A$2)+1),ROWS('info Grid'!A$2:A15))),\"\")","v":""},{"$f":"IFERROR(INDEX('info Grid'!A$2:A$33,SMALL(IF('info Grid'!$A$2:$A$33<>0,ROW('info Grid'!A$2:A$33)-ROW('info Grid'!A$2)+1),ROWS('info Grid'!A$2:A15))),\"\")","v":""},null,{"$f":"IFERROR(INDEX('info Grid'!B$2:B$33,SMALL(IF('info Grid'!$A$2:$A$33<>0,ROW('info Grid'!A$2:A$33)-ROW('info Grid'!A$2)+1),ROWS('info Grid'!B$2:B15))),\"\")","v":""},null,{"$f":"IFERROR(INDEX('info Grid'!$I$2:$I$33,SMALL(IF('info Grid'!$A$2:$A$33<>0,ROW('info Grid'!A$2:A$33)-ROW('info Grid'!A$2)+1),ROWS('info Grid'!A$2:A15))),\"\")","v":""},null,null,null,null,null,null,null,null,null,null,{"$f":"IFERROR(INDEX('info Grid'!F$2:F$33,SMALL(IF('info Grid'!$A$2:$A$33<>0,ROW('info Grid'!A$2:A$33)-ROW('info Grid'!A$2)+1),ROWS('info Grid'!A$2:A15))),\"\")","v":""},{"$f":"IFERROR(INDEX('info Grid'!G$2:G$33,SMALL(IF('info Grid'!$A$2:$A$33<>0,ROW('info Grid'!A$2:A$33)-ROW('info Grid'!A$2)+1),ROWS('info Grid'!A$2:A15))),\"\")","v":""}]
["","",null,"","","",null,"",null,"",null,null,null,null,null,null,null,null,null,null,"","",null,null,null,null,null,null,null,null,null,null,null,null,null,null,null,null,null,null,null,null,null,null,null,null,null,null,null,null,null,null,null,null,null,null,null,null,null,null,null,null,null,null,null,null,null,null,null,null,null,null,null,null,null,null,null,null,{"$f":"IF(CF16<>\"\",15,\"\")","v":""},{"$f":"IFERROR(INDEX('info Grid'!E$2:E$33,SMALL(IF('info Grid'!$A$2:$A$33<>0,ROW('info Grid'!A$2:A$33)-ROW('info Grid'!A$2)+1),ROWS('info Grid'!A$2:A16))),\"\")","v":""},null,{"$f":"IFERROR(INDEX('info Grid'!C$2:C$33,SMALL(IF('info Grid'!$A$2:$A$33<>0,ROW('info Grid'!A$2:A$33)-ROW('info Grid'!A$2)+1),ROWS('info Grid'!A$2:A16))),\"\")","v":""},{"$f":"IFERROR(INDEX('info Grid'!D$2:D$33,SMALL(IF('info Grid'!$A$2:$A$33<>0,ROW('info Grid'!A$2:A$33)-ROW('info Grid'!A$2)+1),ROWS('info Grid'!A$2:A16))),\"\")","v":""},{"$f":"IFERROR(INDEX('info Grid'!A$2:A$33,SMALL(IF('info Grid'!$A$2:$A$33<>0,ROW('info Grid'!A$2:A$33)-ROW('info Grid'!A$2)+1),ROWS('info Grid'!A$2:A16))),\"\")","v":""},null,{"$f":"IFERROR(INDEX('info Grid'!B$2:B$33,SMALL(IF('info Grid'!$A$2:$A$33<>0,ROW('info Grid'!A$2:A$33)-ROW('info Grid'!A$2)+1),ROWS('info Grid'!B$2:B16))),\"\")","v":""},null,{"$f":"IFERROR(INDEX('info Grid'!$I$2:$I$33,SMALL(IF('info Grid'!$A$2:$A$33<>0,ROW('info Grid'!A$2:A$33)-ROW('info Grid'!A$2)+1),ROWS('info Grid'!A$2:A16))),\"\")","v":""},null,null,null,null,null,null,null,null,null,null,{"$f":"IFERROR(INDEX('info Grid'!F$2:F$33,SMALL(IF('info Grid'!$A$2:$A$33<>0,ROW('info Grid'!A$2:A$33)-ROW('info Grid'!A$2)+1),ROWS('info Grid'!A$2:A16))),\"\")","v":""},{"$f":"IFERROR(INDEX('info Grid'!G$2:G$33,SMALL(IF('info Grid'!$A$2:$A$33<>0,ROW('info Grid'!A$2:A$33)-ROW('info Grid'!A$2)+1),ROWS('info Grid'!A$2:A16))),\"\")","v":""}]
["","",null,"","","",null,"",null,"",null,null,null,null,null,null,null,null,null,null,"","",null,null,null,null,null,null,null,null,null,null,null,null,null,null,null,null,null,null,null,null,null,null,null,null,null,null,null,null,null,null,null,null,null,null,null,null,null,null,null,null,null,null,null,null,null,null,null,null,null,null,null,null,null,null,null,null,{"$f":"IF(CF17<>\"\",16,\"\")","v":""},{"$f":"IFERROR(INDEX('info Grid'!E$2:E$33,SMALL(IF('info Grid'!$A$2:$A$33<>0,ROW('info Grid'!A$2:A$33)-ROW('info Grid'!A$2)+1),ROWS('info Grid'!A$2:A17))),\"\")","v":""},null,{"$f":"IFERROR(INDEX('info Grid'!C$2:C$33,SMALL(IF('info Grid'!$A$2:$A$33<>0,ROW('info Grid'!A$2:A$33)-ROW('info Grid'!A$2)+1),ROWS('info Grid'!A$2:A17))),\"\")","v":""},{"$f":"IFERROR(INDEX('info Grid'!D$2:D$33,SMALL(IF('info Grid'!$A$2:$A$33<>0,ROW('info Grid'!A$2:A$33)-ROW('info Grid'!A$2)+1),ROWS('info Grid'!A$2:A17))),\"\")","v":""},{"$f":"IFERROR(INDEX('info Grid'!A$2:A$33,SMALL(IF('info Grid'!$A$2:$A$33<>0,ROW('info Grid'!A$2:A$33)-ROW('info Grid'!A$2)+1),ROWS('info Grid'!A$2:A17))),\"\")","v":""},null,{"$f":"IFERROR(INDEX('info Grid'!B$2:B$33,SMALL(IF('info Grid'!$A$2:$A$33<>0,ROW('info Grid'!A$2:A$33)-ROW('info Grid'!A$2)+1),ROWS('info Grid'!B$2:B17))),\"\")","v":""},null,{"$f":"IFERROR(INDEX('info Grid'!$I$2:$I$33,SMALL(IF('info Grid'!$A$2:$A$33<>0,ROW('info Grid'!A$2:A$33)-ROW('info Grid'!A$2)+1),ROWS('info Grid'!A$2:A17))),\"\")","v":""},null,null,null,null,null,null,null,null,null,null,{"$f":"IFERROR(INDEX('info Grid'!F$2:F$33,SMALL(IF('info Grid'!$A$2:$A$33<>0,ROW('info Grid'!A$2:A$33)-ROW('info Grid'!A$2)+1),ROWS('info Grid'!A$2:A17))),\"\")","v":""},{"$f":"IFERROR(INDEX('info Grid'!G$2:G$33,SMALL(IF('info Grid'!$A$2:$A$33<>0,ROW('info Grid'!A$2:A$33)-ROW('info Grid'!A$2)+1),ROWS('info Grid'!A$2:A17))),\"\")","v":""}]
["","",null,"","","",null,"",null,"",null,null,null,null,null,null,null,null,null,null,"","",null,null,null,null,null,null,null,null,null,null,null,null,null,null,null,null,null,null,null,null,null,null,null,null,null,null,null,null,null,null,null,null,null,null,null,null,null,null,null,null,null,null,null,null,null,null,null,null,null,null,null,null,null,null,null,null,{"$f":"IF(CF18<>\"\",17,\"\")","v":""},{"$f":"IFERROR(INDEX('info Grid'!E$2:E$33,SMALL(IF('info Grid'!$A$2:$A$33<>0,ROW('info Grid'!A$2:A$33)-ROW('info Grid'!A$2)+1),ROWS('info Grid'!A$2:A18))),\"\")","v":""},null,{"$f":"IFERROR(INDEX('info Grid'!C$2:C$33,SMALL(IF('info Grid'!$A$2:$A$33<>0,ROW('info Grid'!A$2:A$33)-ROW('info Grid'!A$2)+1),ROWS('info Grid'!A$2:A18))),\"\")","v":""},{"$f":"IFERROR(INDEX('info Grid'!D$2:D$33,SMALL(IF('info Grid'!$A$2:$A$33<>0,ROW('info Grid'!A$2:A$33)-ROW('info Grid'!A$2)+1),ROWS('info Grid'!A$2:A18))),\"\")","v":""},{"$f":"IFERROR(INDEX('info Grid'!A$2:A$33,SMALL(IF('info Grid'!$A$2:$A$33<>0,ROW('info Grid'!A$2:A$33)-ROW('info Grid'!A$2)+1),ROWS('info Grid'!A$2:A18))),\"\")","v":""},null,{"$f":"IFERROR(INDEX('info Grid'!B$2:B$33,SMALL(IF('info Grid'!$A$2:$A$33<>0,ROW('info Grid'!A$2:A$33)-ROW('info Grid'!A$2)+1),ROWS('info Grid'!B$2:B18))),\"\")","v":""},null,{"$f":"IFERROR(INDEX('info Grid'!$I$2:$I$33,SMALL(IF('info Grid'!$A$2:$A$33<>0,ROW('info Grid'!A$2:A$33)-ROW('info Grid'!A$2)+1),ROWS('info Grid'!A$2:A18))),\"\")","v":""},null,null,null,null,null,null,null,null,null,null,{"$f":"IFERROR(INDEX('info Grid'!F$2:F$33,SMALL(IF('info Grid'!$A$2:$A$33<>0,ROW('info Grid'!A$2:A$33)-ROW('info Grid'!A$2)+1),ROWS('info Grid'!A$2:A18))),\"\")","v":""},{"$f":"IFERROR(INDEX('info Grid'!G$2:G$33,SMALL(IF('info Grid'!$A$2:$A$33<>0,ROW('info Grid'!A$2:A$33)-ROW('info Grid'!A$2)+1),ROWS('info Grid'!A$2:A18))),\"\")","v":""}]
["","",null,"","","",null,"",null,"",null,null,null,null,null,null,null,null,null,null,"","",null,null,null,null,null,null,null,null,null,null,null,null,null,null,null,null,null,null,null,null,null,null,null,null,null,null,null,null,null,null,null,null,null,null,null,null,null,null,null,null,null,null,null,null,null,null,null,null,null,null,null,null,null,null,null,null,{"$f":"IF(CF19<>\"\",18,\"\")","v":""},{"$f":"IFERROR(INDEX('info Grid'!E$2:E$33,SMALL(IF('info Grid'!$A$2:$A$33<>0,ROW('info Grid'!A$2:A$33)-ROW('info Grid'!A$2)+1),ROWS('info Grid'!A$2:A19))),\"\")","v":""},null,{"$f":"IFERROR(INDEX('info Grid'!C$2:C$33,SMALL(IF('info Grid'!$A$2:$A$33<>0,ROW('info Grid'!A$2:A$33)-ROW('info Grid'!A$2)+1),ROWS('info Grid'!A$2:A19))),\"\")","v":""},{"$f":"IFERROR(INDEX('info Grid'!D$2:D$33,SMALL(IF('info Grid'!$A$2:$A$33<>0,ROW('info Grid'!A$2:A$33)-ROW('info Grid'!A$2)+1),ROWS('info Grid'!A$2:A19))),\"\")","v":""},{"$f":"IFERROR(INDEX('info Grid'!A$2:A$33,SMALL(IF('info Grid'!$A$2:$A$33<>0,ROW('info Grid'!A$2:A$33)-ROW('info Grid'!A$2)+1),ROWS('info Grid'!A$2:A19))),\"\")","v":""},null,{"$f":"IFERROR(INDEX('info Grid'!B$2:B$33,SMALL(IF('info Grid'!$A$2:$A$33<>0,ROW('info Grid'!A$2:A$33)-ROW('info Grid'!A$2)+1),ROWS('info Grid'!B$2:B19))),\"\")","v":""},null,{"$f":"IFERROR(INDEX('info Grid'!$I$2:$I$33,SMALL(IF('info Grid'!$A$2:$A$33<>0,ROW('info Grid'!A$2:A$33)-ROW('info Grid'!A$2)+1),ROWS('info Grid'!A$2:A19))),\"\")","v":""},null,null,null,null,null,null,null,null,null,null,{"$f":"IFERROR(INDEX('info Grid'!F$2:F$33,SMALL(IF('info Grid'!$A$2:$A$33<>0,ROW('info Grid'!A$2:A$33)-ROW('info Grid'!A$2)+1),ROWS('info Grid'!A$2:A19))),\"\")","v":""},{"$f":"IFERROR(INDEX('info Grid'!G$2:G$33,SMALL(IF('info Grid'!$A$2:$A$33<>0,ROW('info Grid'!A$2:A$33)-ROW('info Grid'!A$2)+1),ROWS('info Grid'!A$2:A19))),\"\")","v":""}]
["","",null,"","","",null,"",null,"",null,null,null,null,null,null,null,null,null,null,"","",null,null,null,null,null,null,null,null,null,null,null,null,null,null,null,null,null,null,null,null,null,null,null,null,null,null,null,null,null,null,null,null,null,null,null,null,null,null,null,null,null,null,null,null,null,null,null,null,null,null,null,null,null,null,null,null,{"$f":"IF(CF20<>\"\",19,\"\")","v":""},{"$f":"IFERROR(INDEX('info Grid'!E$2:E$33,SMALL(IF('info Grid'!$A$2:$A$33<>0,ROW('info Grid'!A$2:A$33)-ROW('info Grid'!A$2)+1),ROWS('info Grid'!A$2:A20))),\"\")","v":""},null,{"$f":"IFERROR(INDEX('info Grid'!C$2:C$33,SMALL(IF('info Grid'!$A$2:$A$33<>0,ROW('info Grid'!A$2:A$33)-ROW('info Grid'!A$2)+1),ROWS('info Grid'!A$2:A20))),\"\")","v":""},{"$f":"IFERROR(INDEX('info Grid'!D$2:D$33,SMALL(IF('info Grid'!$A$2:$A$33<>0,ROW('info Grid'!A$2:A$33)-ROW('info Grid'!A$2)+1),ROWS('info Grid'!A$2:A20))),\"\")","v":""},{"$f":"IFERROR(INDEX('info Grid'!A$2:A$33,SMALL(IF('info Grid'!$A$2:$A$33<>0,ROW('info Grid'!A$2:A$33)-ROW('info Grid'!A$2)+1),ROWS('info Grid'!A$2:A20))),\"\")","v":""},null,{"$f":"IFERROR(INDEX('info Grid'!B$2:B$33,SMALL(IF('info Grid'!$A$2:$A$33<>0,ROW('info Grid'!A$2:A$33)-ROW('info Grid'!A$2)+1),ROWS('info Grid'!B$2:B20))),\"\")","v":""},null,{"$f":"IFERROR(INDEX('info Grid'!$I$2:$I$33,SMALL(IF('info Grid'!$A$2:$A$33<>0,ROW('info Grid'!A$2:A$33)-ROW('info Grid'!A$2)+1),ROWS('info Grid'!A$2:A20))),\"\")","v":""},null,null,null,null,null,null,null,null,null,null,{"$f":"IFERROR(INDEX('info Grid'!F$2:F$33,SMALL(IF('info Grid'!$A$2:$A$33<>0,ROW('info Grid'!A$2:A$33)-ROW('info Grid'!A$2)+1),ROWS('info Grid'!A$2:A20))),\"\")","v":""},{"$f":"IFERROR(INDEX('info Grid'!G$2:G$33,SMALL(IF('info Grid'!$A$2:$A$33<>0,ROW('info Grid'!A$2:A$33)-ROW('info Grid'!A$2)+1),ROWS('info Grid'!A$2:A20))),\"\")","v":""}]
["","",null,"","","",null,"",null,"",null,null,null,null,null,null,null,null,null,null,"","",null,null,null,null,null,null,null,null,null,null,null,null,null,null,null,null,null,null,null,null,null,null,null,null,null,null,null,null,null,null,null,null,null,null,null,null,null,null,null,null,null,null,null,null,null,null,null,null,null,null,null,null,null,null,null,null,{"$f":"IF(CF21<>\"\",20,\"\")","v":""},{"$f":"IFERROR(INDEX('info Grid'!E$2:E$33,SMALL(IF('info Grid'!$A$2:$A$33<>0,ROW('info Grid'!A$2:A$33)-ROW('info Grid'!A$2)+1),ROWS('info Grid'!A$2:A21))),\"\")","v":""},null,{"$f":"IFERROR(INDEX('info Grid'!C$2:C$33,SMALL(IF('info Grid'!$A$2:$A$33<>0,ROW('info Grid'!A$2:A$33)-ROW('info Grid'!A$2)+1),ROWS('info Grid'!A$2:A21))),\"\")","v":""},{"$f":"IFERROR(INDEX('info Grid'!D$2:D$33,SMALL(IF('info Grid'!$A$2:$A$33<>0,ROW('info Grid'!A$2:A$33)-ROW('info Grid'!A$2)+1),ROWS('info Grid'!A$2:A21))),\"\")","v":""},{"$f":"IFERROR(INDEX('info Grid'!A$2:A$33,SMALL(IF('info Grid'!$A$2:$A$33<>0,ROW('info Grid'!A$2:A$33)-ROW('info Grid'!A$2)+1),ROWS('info Grid'!A$2:A21))),\"\")","v":""},null,{"$f":"IFERROR(INDEX('info Grid'!B$2:B$33,SMALL(IF('info Grid'!$A$2:$A$33<>0,ROW('info Grid'!A$2:A$33)-ROW('info Grid'!A$2)+1),ROWS('info Grid'!B$2:B21))),\"\")","v":""},null,{"$f":"IFERROR(INDEX('info Grid'!$I$2:$I$33,SMALL(IF('info Grid'!$A$2:$A$33<>0,ROW('info Grid'!A$2:A$33)-ROW('info Grid'!A$2)+1),ROWS('info Grid'!A$2:A21))),\"\")","v":""},null,null,null,null,null,null,null,null,null,null,{"$f":"IFERROR(INDEX('info Grid'!F$2:F$33,SMALL(IF('info Grid'!$A$2:$A$33<>0,ROW('info Grid'!A$2:A$33)-ROW('info Grid'!A$2)+1),ROWS('info Grid'!A$2:A21))),\"\")","v":""},{"$f":"IFERROR(INDEX('info Grid'!G$2:G$33,SMALL(IF('info Grid'!$A$2:$A$33<>0,ROW('info Grid'!A$2:A$33)-ROW('info Grid'!A$2)+1),ROWS('info Grid'!A$2:A21))),\"\")","v":""}]
["","",null,"","","",null,"",null,"",null,null,null,null,null,null,null,null,null,null,"","",null,null,null,null,null,null,null,null,null,null,null,null,null,null,null,null,null,null,null,null,null,null,null,null,null,null,null,null,null,null,null,null,null,null,null,null,null,null,null,null,null,null,null,null,null,null,null,null,null,null,null,null,null,null,null,null,{"$f":"IF(CF22<>\"\",21,\"\")","v":""},{"$f":"IFERROR(INDEX('info Grid'!E$2:E$33,SMALL(IF('info Grid'!$A$2:$A$33<>0,ROW('info Grid'!A$2:A$33)-ROW('info Grid'!A$2)+1),ROWS('info Grid'!A$2:A22))),\"\")","v":""},null,{"$f":"IFERROR(INDEX('info Grid'!C$2:C$33,SMALL(IF('info Grid'!$A$2:$A$33<>0,ROW('info Grid'!A$2:A$33)-ROW('info Grid'!A$2)+1),ROWS('info Grid'!A$2:A22))),\"\")","v":""},{"$f":"IFERROR(INDEX('info Grid'!D$2:D$33,SMALL(IF('info Grid'!$A$2:$A$33<>0,ROW('info Grid'!A$2:A$33)-ROW('info Grid'!A$2)+1),ROWS('info Grid'!A$2:A22))),\"\")","v":""},{"$f":"IFERROR(INDEX('info Grid'!A$2:A$33,SMALL(IF('info Grid'!$A$2:$A$33<>0,ROW('info Grid'!A$2:A$33)-ROW('info Grid'!A$2)+1),ROWS('info Grid'!A$2:A22))),\"\")","v":""},null,{"$f":"IFERROR(INDEX('info Grid'!B$2:B$33,SMALL(IF('info Grid'!$A$2:$A$33<>0,ROW('info Grid'!A$2:A$33)-ROW('info Grid'!A$2)+1),ROWS('info Grid'!B$2:B22))),\"\")","v":""},null,{"$f":"IFERROR(INDEX('info Grid'!$I$2:$I$33,SMALL(IF('info Grid'!$A$2:$A$33<>0,ROW('info Grid'!A$2:A$33)-ROW('info Grid'!A$2)+1),ROWS('info Grid'!A$2:A22))),\"\")","v":""},null,null,null,null,null,null,null,null,null,null,{"$f":"IFERROR(INDEX('info Grid'!F$2:F$33,SMALL(IF('info Grid'!$A$2:$A$33<>0,ROW('info Grid'!A$2:A$33)-ROW('info Grid'!A$2)+1),ROWS('info Grid'!A$2:A22))),\"\")","v":""},{"$f":"IFERROR(INDEX('info Grid'!G$2:G$33,SMALL(IF('info Grid'!$A$2:$A$33<>0,ROW('info Grid'!A$2:A$33)-ROW('info Grid'!A$2)+1),ROWS('info Grid'!A$2:A22))),\"\")","v":""}]
["","",null,"","","",null,"",null,"",null,null,null,null,null,null,null,null,null,null,"","",null,null,null,null,null,null,null,null,null,null,null,null,null,null,null,null,null,null,null,null,null,null,null,null,null,null,null,null,null,null,null,null,null,null,null,null,null,null,null,null,null,null,null,null,null,null,null,null,null,null,null,null,null,null,null,null,{"$f":"IF(CF23<>\"\",22,\"\")","v":""},{"$f":"IFERROR(INDEX('info Grid'!E$2:E$33,SMALL(IF('info Grid'!$A$2:$A$33<>0,ROW('info Grid'!A$2:A$33)-ROW('info Grid'!A$2)+1),ROWS('info Grid'!A$2:A23))),\"\")","v":""},null,{"$f":"IFERROR(INDEX('info Grid'!C$2:C$33,SMALL(IF('info Grid'!$A$2:$A$33<>0,ROW('info Grid'!A$2:A$33)-ROW('info Grid'!A$2)+1),ROWS('info Grid'!A$2:A23))),\"\")","v":""},{"$f":"IFERROR(INDEX('info Grid'!D$2:D$33,SMALL(IF('info Grid'!$A$2:$A$33<>0,ROW('info Grid'!A$2:A$33)-ROW('info Grid'!A$2)+1),ROWS('info Grid'!A$2:A23))),\"\")","v":""},{"$f":"IFERROR(INDEX('info Grid'!A$2:A$33,SMALL(IF('info Grid'!$A$2:$A$33<>0,ROW('info Grid'!A$2:A$33)-ROW('info Grid'!A$2)+1),ROWS('info Grid'!A$2:A23))),\"\")","v":""},null,{"$f":"IFERROR(INDEX('info Grid'!B$2:B$33,SMALL(IF('info Grid'!$A$2:$A$33<>0,ROW('info Grid'!A$2:A$33)-ROW('info Grid'!A$2)+1),ROWS('info Grid'!B$2:B23))),\"\")","v":""},null,{"$f":"IFERROR(INDEX('info Grid'!$I$2:$I$33,SMALL(IF('info Grid'!$A$2:$A$33<>0,ROW('info Grid'!A$2:A$33)-ROW('info Grid'!A$2)+1),ROWS('info Grid'!A$2:A23))),\"\")","v":""},null,null,null,null,null,null,null,null,null,null,{"$f":"IFERROR(INDEX('info Grid'!F$2:F$33,SMALL(IF('info Grid'!$A$2:$A$33<>0,ROW('info Grid'!A$2:A$33)-ROW('info Grid'!A$2)+1),ROWS('info Grid'!A$2:A23))),\"\")","v":""},{"$f":"IFERROR(INDEX('info Grid'!G$2:G$33,SMALL(IF('info Grid'!$A$2:$A$33<>0,ROW('info Grid'!A$2:A$33)-ROW('info Grid'!A$2)+1),ROWS('info Grid'!A$2:A23))),\"\")","v":""}]
["","",null,"","","",null,"",null,"",null,null,null,null,null,null,null,null,null,null,"","",null,null,null,null,null,null,null,null,null,null,null,null,null,null,null,null,null,null,null,null,null,null,null,null,null,null,null,null,null,null,null,null,null,null,null,null,null,null,null,null,null,null,null,null,null,null,null,null,null,null,null,null,null,null,null,null,{"$f":"IF(CF24<>\"\",23,\"\")","v":""},{"$f":"IFERROR(INDEX('info Grid'!E$2:E$33,SMALL(IF('info Grid'!$A$2:$A$33<>0,ROW('info Grid'!A$2:A$33)-ROW('info Grid'!A$2)+1),ROWS('info Grid'!A$2:A24))),\"\")","v":""},null,{"$f":"IFERROR(INDEX('info Grid'!C$2:C$33,SMALL(IF('info Grid'!$A$2:$A$33<>0,ROW('info Grid'!A$2:A$33)-ROW('info Grid'!A$2)+1),ROWS('info Grid'!A$2:A24))),\"\")","v":""},{"$f":"IFERROR(INDEX('info Grid'!D$2:D$33,SMALL(IF('info Grid'!$A$2:$A$33<>0,ROW('info Grid'!A$2:A$33)-ROW('info Grid'!A$2)+1),ROWS('info Grid'!A$2:A24))),\"\")","v":""},{"$f":"IFERROR(INDEX('info Grid'!A$2:A$33,SMALL(IF('info Grid'!$A$2:$A$33<>0,ROW('info Grid'!A$2:A$33)-ROW('info Grid'!A$2)+1),ROWS('info Grid'!A$2:A24))),\"\")","v":""},null,{"$f":"IFERROR(INDEX('info Grid'!B$2:B$33,SMALL(IF('info Grid'!$A$2:$A$33<>0,ROW('info Grid'!A$2:A$33)-ROW('info Grid'!A$2)+1),ROWS('info Grid'!B$2:B24))),\"\")","v":""},null,{"$f":"IFERROR(INDEX('info Grid'!$I$2:$I$33,SMALL(IF('info Grid'!$A$2:$A$33<>0,ROW('info Grid'!A$2:A$33)-ROW('info Grid'!A$2)+1),ROWS('info Grid'!A$2:A24))),\"\")","v":""},null,null,null,null,null,null,null,null,null,null,{"$f":"IFERROR(INDEX('info Grid'!F$2:F$33,SMALL(IF('info Grid'!$A$2:$A$33<>0,ROW('info Grid'!A$2:A$33)-ROW('info Grid'!A$2)+1),ROWS('info Grid'!A$2:A24))),\"\")","v":""},{"$f":"IFERROR(INDEX('info Grid'!G$2:G$33,SMALL(IF('info Grid'!$A$2:$A$33<>0,ROW('info Grid'!A$2:A$33)-ROW('info Grid'!A$2)+1),ROWS('info Grid'!A$2:A24))),\"\")","v":""}]
["","",null,"","","",null,"",null,"",null,null,null,null,null,null,null,null,null,null,"","",null,null,null,null,null,null,null,null,null,null,null,null,null,null,null,null,null,null,null,null,null,null,null,null,null,null,null,null,null,null,null,null,null,null,null,null,null,null,null,null,null,null,null,null,null,null,null,null,null,null,null,null,null,null,null,null,{"$f":"IF(CF25<>\"\",24,\"\")","v":""},{"$f":"IFERROR(INDEX('info Grid'!E$2:E$33,SMALL(IF('info Grid'!$A$2:$A$33<>0,ROW('info Grid'!A$2:A$33)-ROW('info Grid'!A$2)+1),ROWS('info Grid'!A$2:A25))),\"\")","v":""},null,{"$f":"IFERROR(INDEX('info Grid'!C$2:C$33,SMALL(IF('info Grid'!$A$2:$A$33<>0,ROW('info Grid'!A$2:A$33)-ROW('info Grid'!A$2)+1),ROWS('info Grid'!A$2:A25))),\"\")","v":""},{"$f":"IFERROR(INDEX('info Grid'!D$2:D$33,SMALL(IF('info Grid'!$A$2:$A$33<>0,ROW('info Grid'!A$2:A$33)-ROW('info Grid'!A$2)+1),ROWS('info Grid'!A$2:A25))),\"\")","v":""},{"$f":"IFERROR(INDEX('info Grid'!A$2:A$33,SMALL(IF('info Grid'!$A$2:$A$33<>0,ROW('info Grid'!A$2:A$33)-ROW('info Grid'!A$2)+1),ROWS('info Grid'!A$2:A25))),\"\")","v":""},null,{"$f":"IFERROR(INDEX('info Grid'!B$2:B$33,SMALL(IF('info Grid'!$A$2:$A$33<>0,ROW('info Grid'!A$2:A$33)-ROW('info Grid'!A$2)+1),ROWS('info Grid'!B$2:B25))),\"\")","v":""},null,{"$f":"IFERROR(INDEX('info Grid'!$I$2:$I$33,SMALL(IF('info Grid'!$A$2:$A$33<>0,ROW('info Grid'!A$2:A$33)-ROW('info Grid'!A$2)+1),ROWS('info Grid'!A$2:A25))),\"\")","v":""},null,null,null,null,null,null,null,null,null,null,{"$f":"IFERROR(INDEX('info Grid'!F$2:F$33,SMALL(IF('info Grid'!$A$2:$A$33<>0,ROW('info Grid'!A$2:A$33)-ROW('info Grid'!A$2)+1),ROWS('info Grid'!A$2:A25))),\"\")","v":""},{"$f":"IFERROR(INDEX('info Grid'!G$2:G$33,SMALL(IF('info Grid'!$A$2:$A$33<>0,ROW('info Grid'!A$2:A$33)-ROW('info Grid'!A$2)+1),ROWS('info Grid'!A$2:A25))),\"\")","v":""}]
["","",null,"","","",null,"",null,"",null,null,null,null,null,null,null,null,null,null,"","",null,null,null,null,null,null,null,null,null,null,null,null,null,null,null,null,null,null,null,null,null,null,null,null,null,null,null,null,null,null,null,null,null,null,null,null,null,null,null,null,null,null,null,null,null,null,null,null,null,null,null,null,null,null,null,null,{"$f":"IF(CF26<>\"\",25,\"\")","v":""},{"$f":"IFERROR(INDEX('info Grid'!E$2:E$33,SMALL(IF('info Grid'!$A$2:$A$33<>0,ROW('info Grid'!A$2:A$33)-ROW('info Grid'!A$2)+1),ROWS('info Grid'!A$2:A26))),\"\")","v":""},null,{"$f":"IFERROR(INDEX('info Grid'!C$2:C$33,SMALL(IF('info Grid'!$A$2:$A$33<>0,ROW('info Grid'!A$2:A$33)-ROW('info Grid'!A$2)+1),ROWS('info Grid'!A$2:A26))),\"\")","v":""},{"$f":"IFERROR(INDEX('info Grid'!D$2:D$33,SMALL(IF('info Grid'!$A$2:$A$33<>0,ROW('info Grid'!A$2:A$33)-ROW('info Grid'!A$2)+1),ROWS('info Grid'!A$2:A26))),\"\")","v":""},{"$f":"IFERROR(INDEX('info Grid'!A$2:A$33,SMALL(IF('info Grid'!$A$2:$A$33<>0,ROW('info Grid'!A$2:A$33)-ROW('info Grid'!A$2)+1),ROWS('info Grid'!A$2:A26))),\"\")","v":""},null,{"$f":"IFERROR(INDEX('info Grid'!B$2:B$33,SMALL(IF('info Grid'!$A$2:$A$33<>0,ROW('info Grid'!A$2:A$33)-ROW('info Grid'!A$2)+1),ROWS('info Grid'!B$2:B26))),\"\")","v":""},null,{"$f":"IFERROR(INDEX('info Grid'!$I$2:$I$33,SMALL(IF('info Grid'!$A$2:$A$33<>0,ROW('info Grid'!A$2:A$33)-ROW('info Grid'!A$2)+1),ROWS('info Grid'!A$2:A26))),\"\")","v":""},null,null,null,null,null,null,null,null,null,null,{"$f":"IFERROR(INDEX('info Grid'!F$2:F$33,SMALL(IF('info Grid'!$A$2:$A$33<>0,ROW('info Grid'!A$2:A$33)-ROW('info Grid'!A$2)+1),ROWS('info Grid'!A$2:A26))),\"\")","v":""},{"$f":"IFERROR(INDEX('info Grid'!G$2:G$33,SMALL(IF('info Grid'!$A$2:$A$33<>0,ROW('info Grid'!A$2:A$33)-ROW('info Grid'!A$2)+1),ROWS('info Grid'!A$2:A26))),\"\")","v":""}]
["","",null,"","","",null,"",null,"",null,null,null,null,null,null,null,null,null,null,"","",null,null,null,null,null,null,null,null,null,null,null,null,null,null,null,null,null,null,null,null,null,null,null,null,null,null,null,null,null,null,null,null,null,null,null,null,null,null,null,null,null,null,null,null,null,null,null,null,null,null,null,null,null,null,null,null,{"$f":"IF(CF27<>\"\",26,\"\")","v":""},{"$f":"IFERROR(INDEX('info Grid'!E$2:E$33,SMALL(IF('info Grid'!$A$2:$A$33<>0,ROW('info Grid'!A$2:A$33)-ROW('info Grid'!A$2)+1),ROWS('info Grid'!A$2:A27))),\"\")","v":""},null,{"$f":"IFERROR(INDEX('info Grid'!C$2:C$33,SMALL(IF('info Grid'!$A$2:$A$33<>0,ROW('info Grid'!A$2:A$33)-ROW('info Grid'!A$2)+1),ROWS('info Grid'!A$2:A27))),\"\")","v":""},{"$f":"IFERROR(INDEX('info Grid'!D$2:D$33,SMALL(IF('info Grid'!$A$2:$A$33<>0,ROW('info Grid'!A$2:A$33)-ROW('info Grid'!A$2)+1),ROWS('info Grid'!A$2:A27))),\"\")","v":""},{"$f":"IFERROR(INDEX('info Grid'!A$2:A$33,SMALL(IF('info Grid'!$A$2:$A$33<>0,ROW('info Grid'!A$2:A$33)-ROW('info Grid'!A$2)+1),ROWS('info Grid'!A$2:A27))),\"\")","v":""},null,{"$f":"IFERROR(INDEX('info Grid'!B$2:B$33,SMALL(IF('info Grid'!$A$2:$A$33<>0,ROW('info Grid'!A$2:A$33)-ROW('info Grid'!A$2)+1),ROWS('info Grid'!B$2:B27))),\"\")","v":""},null,{"$f":"IFERROR(INDEX('info Grid'!$I$2:$I$33,SMALL(IF('info Grid'!$A$2:$A$33<>0,ROW('info Grid'!A$2:A$33)-ROW('info Grid'!A$2)+1),ROWS('info Grid'!A$2:A27))),\"\")","v":""},null,null,null,null,null,null,null,null,null,null,{"$f":"IFERROR(INDEX('info Grid'!F$2:F$33,SMALL(IF('info Grid'!$A$2:$A$33<>0,ROW('info Grid'!A$2:A$33)-ROW('info Grid'!A$2)+1),ROWS('info Grid'!A$2:A27))),\"\")","v":""},{"$f":"IFERROR(INDEX('info Grid'!G$2:G$33,SMALL(IF('info Grid'!$A$2:$A$33<>0,ROW('info Grid'!A$2:A$33)-ROW('info Grid'!A$2)+1),ROWS('info Grid'!A$2:A27))),\"\")","v":""}]
["","",null,"","","",null,"",null,"",null,null,null,null,null,null,null,null,null,null,"","",null,null,null,null,null,null,null,null,null,null,null,null,null,null,null,null,null,null,null,null,null,null,null,null,null,null,null,null,null,null,null,null,null,null,null,null,null,null,null,null,null,null,null,null,null,null,null,null,null,null,null,null,null,null,null,null,{"$f":"IF(CF28<>\"\",27,\"\")","v":""},{"$f":"IFERROR(INDEX('info Grid'!E$2:E$33,SMALL(IF('info Grid'!$A$2:$A$33<>0,ROW('info Grid'!A$2:A$33)-ROW('info Grid'!A$2)+1),ROWS('info Grid'!A$2:A28))),\"\")","v":""},null,{"$f":"IFERROR(INDEX('info Grid'!C$2:C$33,SMALL(IF('info Grid'!$A$2:$A$33<>0,ROW('info Grid'!A$2:A$33)-ROW('info Grid'!A$2)+1),ROWS('info Grid'!A$2:A28))),\"\")","v":""},{"$f":"IFERROR(INDEX('info Grid'!D$2:D$33,SMALL(IF('info Grid'!$A$2:$A$33<>0,ROW('info Grid'!A$2:A$33)-ROW('info Grid'!A$2)+1),ROWS('info Grid'!A$2:A28))),\"\")","v":""},{"$f":"IFERROR(INDEX('info Grid'!A$2:A$33,SMALL(IF('info Grid'!$A$2:$A$33<>0,ROW('info Grid'!A$2:A$33)-ROW('info Grid'!A$2)+1),ROWS('info Grid'!A$2:A28))),\"\")","v":""},null,{"$f":"IFERROR(INDEX('info Grid'!B$2:B$33,SMALL(IF('info Grid'!$A$2:$A$33<>0,ROW('info Grid'!A$2:A$33)-ROW('info Grid'!A$2)+1),ROWS('info Grid'!B$2:B28))),\"\")","v":""},null,{"$f":"IFERROR(INDEX('info Grid'!$I$2:$I$33,SMALL(IF('info Grid'!$A$2:$A$33<>0,ROW('info Grid'!A$2:A$33)-ROW('info Grid'!A$2)+1),ROWS('info Grid'!A$2:A28))),\"\")","v":""},null,null,null,null,null,null,null,null,null,null,{"$f":"IFERROR(INDEX('info Grid'!F$2:F$33,SMALL(IF('info Grid'!$A$2:$A$33<>0,ROW('info Grid'!A$2:A$33)-ROW('info Grid'!A$2)+1),ROWS('info Grid'!A$2:A28))),\"\")","v":""},{"$f":"IFERROR(INDEX('info Grid'!G$2:G$33,SMALL(IF('info Grid'!$A$2:$A$33<>0,ROW('info Grid'!A$2:A$33)-ROW('info Grid'!A$2)+1),ROWS('info Grid'!A$2:A28))),\"\")","v":""}]
["","",null,"","","",null,"",null,"",null,null,null,null,null,null,null,null,null,null,"","",null,null,null,null,null,null,null,null,null,null,null,null,null,null,null,null,null,null,null,null,null,null,null,null,null,null,null,null,null,null,null,null,null,null,null,null,null,null,null,null,null,null,null,null,null,null,null,null,null,null,null,null,null,null,null,null,{"$f":"IF(CF29<>\"\",28,\"\")","v":""},{"$f":"IFERROR(INDEX('info Grid'!E$2:E$33,SMALL(IF('info Grid'!$A$2:$A$33<>0,ROW('info Grid'!A$2:A$33)-ROW('info Grid'!A$2)+1),ROWS('info Grid'!A$2:A29))),\"\")","v":""},null,{"$f":"IFERROR(INDEX('info Grid'!C$2:C$33,SMALL(IF('info Grid'!$A$2:$A$33<>0,ROW('info Grid'!A$2:A$33)-ROW('info Grid'!A$2)+1),ROWS('info Grid'!A$2:A29))),\"\")","v":""},{"$f":"IFERROR(INDEX('info Grid'!D$2:D$33,SMALL(IF('info Grid'!$A$2:$A$33<>0,ROW('info Grid'!A$2:A$33)-ROW('info Grid'!A$2)+1),ROWS('info Grid'!A$2:A29))),\"\")","v":""},{"$f":"IFERROR(INDEX('info Grid'!A$2:A$33,SMALL(IF('info Grid'!$A$2:$A$33<>0,ROW('info Grid'!A$2:A$33)-ROW('info Grid'!A$2)+1),ROWS('info Grid'!A$2:A29))),\"\")","v":""},null,{"$f":"IFERROR(INDEX('info Grid'!B$2:B$33,SMALL(IF('info Grid'!$A$2:$A$33<>0,ROW('info Grid'!A$2:A$33)-ROW('info Grid'!A$2)+1),ROWS('info Grid'!B$2:B29))),\"\")","v":""},null,{"$f":"IFERROR(INDEX('info Grid'!$I$2:$I$33,SMALL(IF('info Grid'!$A$2:$A$33<>0,ROW('info Grid'!A$2:A$33)-ROW('info Grid'!A$2)+1),ROWS('info Grid'!A$2:A29))),\"\")","v":""},null,null,null,null,null,null,null,null,null,null,{"$f":"IFERROR(INDEX('info Grid'!F$2:F$33,SMALL(IF('info Grid'!$A$2:$A$33<>0,ROW('info Grid'!A$2:A$33)-ROW('info Grid'!A$2)+1),ROWS('info Grid'!A$2:A29))),\"\")","v":""},{"$f":"IFERROR(INDEX('info Grid'!G$2:G$33,SMALL(IF('info Grid'!$A$2:$A$33<>0,ROW('info Grid'!A$2:A$33)-ROW('info Grid'!A$2)+1),ROWS('info Grid'!A$2:A29))),\"\")","v":""}]
["","",null,"","","",null,"",null,"",null,null,null,null,null,null,null,null,null,null,"","",null,null,null,null,null,null,null,null,null,null,null,null,null,null,null,null,null,null,null,null,null,null,null,null,null,null,null,null,null,null,null,null,null,null,null,null,null,null,null,null,null,null,null,null,null,null,null,null,null,null,null,null,null,null,null,null,{"$f":"IF(CF30<>\"\",29,\"\")","v":""},{"$f":"IFERROR(INDEX('info Grid'!E$2:E$33,SMALL(IF('info Grid'!$A$2:$A$33<>0,ROW('info Grid'!A$2:A$33)-ROW('info Grid'!A$2)+1),ROWS('info Grid'!A$2:A30))),\"\")","v":""},null,{"$f":"IFERROR(INDEX('info Grid'!C$2:C$33,SMALL(IF('info Grid'!$A$2:$A$33<>0,ROW('info Grid'!A$2:A$33)-ROW('info Grid'!A$2)+1),ROWS('info Grid'!A$2:A30))),\"\")","v":""},{"$f":"IFERROR(INDEX('info Grid'!D$2:D$33,SMALL(IF('info Grid'!$A$2:$A$33<>0,ROW('info Grid'!A$2:A$33)-ROW('info Grid'!A$2)+1),ROWS('info Grid'!A$2:A30))),\"\")","v":""},{"$f":"IFERROR(INDEX('info Grid'!A$2:A$33,SMALL(IF('info Grid'!$A$2:$A$33<>0,ROW('info Grid'!A$2:A$33)-ROW('info Grid'!A$2)+1),ROWS('info Grid'!A$2:A30))),\"\")","v":""},null,{"$f":"IFERROR(INDEX('info Grid'!B$2:B$33,SMALL(IF('info Grid'!$A$2:$A$33<>0,ROW('info Grid'!A$2:A$33)-ROW('info Grid'!A$2)+1),ROWS('info Grid'!B$2:B30))),\"\")","v":""},null,{"$f":"IFERROR(INDEX('info Grid'!$I$2:$I$33,SMALL(IF('info Grid'!$A$2:$A$33<>0,ROW('info Grid'!A$2:A$33)-ROW('info Grid'!A$2)+1),ROWS('info Grid'!A$2:A30))),\"\")","v":""},null,null,null,null,null,null,null,null,null,null,{"$f":"IFERROR(INDEX('info Grid'!F$2:F$33,SMALL(IF('info Grid'!$A$2:$A$33<>0,ROW('info Grid'!A$2:A$33)-ROW('info Grid'!A$2)+1),ROWS('info Grid'!A$2:A30))),\"\")","v":""},{"$f":"IFERROR(INDEX('info Grid'!G$2:G$33,SMALL(IF('info Grid'!$A$2:$A$33<>0,ROW('info Grid'!A$2:A$33)-ROW('info Grid'!A$2)+1),ROWS('info Grid'!A$2:A30))),\"\")","v":""}]
["","",null,"","","",null,"",null,"",null,null,null,null,null,null,null,null,null,null,"","",null,null,null,null,null,null,null,null,null,null,null,null,null,null,null,null,null,null,null,null,null,null,null,null,null,null,null,null,null,null,null,null,null,null,null,null,null,null,null,null,null,null,null,null,null,null,null,null,null,null,null,null,null,null,null,null,{"$f":"IF(CF31<>\"\",30,\"\")","v":""},{"$f":"IFERROR(INDEX('info Grid'!E$2:E$33,SMALL(IF('info Grid'!$A$2:$A$33<>0,ROW('info Grid'!A$2:A$33)-ROW('info Grid'!A$2)+1),ROWS('info Grid'!A$2:A31))),\"\")","v":""},null,{"$f":"IFERROR(INDEX('info Grid'!C$2:C$33,SMALL(IF('info Grid'!$A$2:$A$33<>0,ROW('info Grid'!A$2:A$33)-ROW('info Grid'!A$2)+1),ROWS('info Grid'!A$2:A31))),\"\")","v":""},{"$f":"IFERROR(INDEX('info Grid'!D$2:D$33,SMALL(IF('info Grid'!$A$2:$A$33<>0,ROW('info Grid'!A$2:A$33)-ROW('info Grid'!A$2)+1),ROWS('info Grid'!A$2:A31))),\"\")","v":""},{"$f":"IFERROR(INDEX('info Grid'!A$2:A$33,SMALL(IF('info Grid'!$A$2:$A$33<>0,ROW('info Grid'!A$2:A$33)-ROW('info Grid'!A$2)+1),ROWS('info Grid'!A$2:A31))),\"\")","v":""},null,{"$f":"IFERROR(INDEX('info Grid'!B$2:B$33,SMALL(IF('info Grid'!$A$2:$A$33<>0,ROW('info Grid'!A$2:A$33)-ROW('info Grid'!A$2)+1),ROWS('info Grid'!B$2:B31))),\"\")","v":""},null,{"$f":"IFERROR(INDEX('info Grid'!$I$2:$I$33,SMALL(IF('info Grid'!$A$2:$A$33<>0,ROW('info Grid'!A$2:A$33)-ROW('info Grid'!A$2)+1),ROWS('info Grid'!A$2:A31))),\"\")","v":""},null,null,null,null,null,null,null,null,null,null,{"$f":"IFERROR(INDEX('info Grid'!F$2:F$33,SMALL(IF('info Grid'!$A$2:$A$33<>0,ROW('info Grid'!A$2:A$33)-ROW('info Grid'!A$2)+1),ROWS('info Grid'!A$2:A31))),\"\")","v":""},{"$f":"IFERROR(INDEX('info Grid'!G$2:G$33,SMALL(IF('info Grid'!$A$2:$A$33<>0,ROW('info Grid'!A$2:A$33)-ROW('info Grid'!A$2)+1),ROWS('info Grid'!A$2:A31))),\"\")","v":""}]
["","",null,"","","",null,"",null,"",null,null,null,null,null,null,null,null,null,null,"","",null,null,null,null,null,null,null,null,null,null,null,null,null,null,null,null,null,null,null,null,null,null,null,null,null,null,null,null,null,null,null,null,null,null,null,null,null,null,null,null,null,null,null,null,null,null,null,null,null,null,null,null,null,null,null,null,{"$f":"IF(CF32<>\"\",31,\"\")","v":""},{"$f":"IFERROR(INDEX('info Grid'!E$2:E$33,SMALL(IF('info Grid'!$A$2:$A$33<>0,ROW('info Grid'!A$2:A$33)-ROW('info Grid'!A$2)+1),ROWS('info Grid'!A$2:A32))),\"\")","v":""},null,{"$f":"IFERROR(INDEX('info Grid'!C$2:C$33,SMALL(IF('info Grid'!$A$2:$A$33<>0,ROW('info Grid'!A$2:A$33)-ROW('info Grid'!A$2)+1),ROWS('info Grid'!A$2:A32))),\"\")","v":""},{"$f":"IFERROR(INDEX('info Grid'!D$2:D$33,SMALL(IF('info Grid'!$A$2:$A$33<>0,ROW('info Grid'!A$2:A$33)-ROW('info Grid'!A$2)+1),ROWS('info Grid'!A$2:A32))),\"\")","v":""},{"$f":"IFERROR(INDEX('info Grid'!A$2:A$33,SMALL(IF('info Grid'!$A$2:$A$33<>0,ROW('info Grid'!A$2:A$33)-ROW('info Grid'!A$2)+1),ROWS('info Grid'!A$2:A32))),\"\")","v":""},null,{"$f":"IFERROR(INDEX('info Grid'!B$2:B$33,SMALL(IF('info Grid'!$A$2:$A$33<>0,ROW('info Grid'!A$2:A$33)-ROW('info Grid'!A$2)+1),ROWS('info Grid'!B$2:B32))),\"\")","v":""},null,{"$f":"IFERROR(INDEX('info Grid'!$I$2:$I$33,SMALL(IF('info Grid'!$A$2:$A$33<>0,ROW('info Grid'!A$2:A$33)-ROW('info Grid'!A$2)+1),ROWS('info Grid'!A$2:A32))),\"\")","v":""},null,null,null,null,null,null,null,null,null,null,{"$f":"IFERROR(INDEX('info Grid'!F$2:F$33,SMALL(IF('info Grid'!$A$2:$A$33<>0,ROW('info Grid'!A$2:A$33)-ROW('info Grid'!A$2)+1),ROWS('info Grid'!A$2:A32))),\"\")","v":""},{"$f":"IFERROR(INDEX('info Grid'!G$2:G$33,SMALL(IF('info Grid'!$A$2:$A$33<>0,ROW('info Grid'!A$2:A$33)-ROW('info Grid'!A$2)+1),ROWS('info Grid'!A$2:A32))),\"\")","v":""}]
["","",null,"","","",null,"",null,"",null,null,null,null,null,null,null,null,null,null,"","",null,null,null,null,null,null,null,null,null,null,null,null,null,null,null,null,null,null,null,null,null,null,null,null,null,null,null,null,null,null,null,null,null,null,null,null,null,null,null,null,null,null,null,null,null,null,null,null,null,null,null,null,null,null,null,null,{"$f":"IF(CF33<>\"\",32,\"\")","v":""},{"$f":"IFERROR(INDEX('info Grid'!E$2:E$33,SMALL(IF('info Grid'!$A$2:$A$33<>0,ROW('info Grid'!A$2:A$33)-ROW('info Grid'!A$2)+1),ROWS('info Grid'!A$2:A33))),\"\")","v":""},null,{"$f":"IFERROR(INDEX('info Grid'!C$2:C$33,SMALL(IF('info Grid'!$A$2:$A$33<>0,ROW('info Grid'!A$2:A$33)-ROW('info Grid'!A$2)+1),ROWS('info Grid'!A$2:A33))),\"\")","v":""},{"$f":"IFERROR(INDEX('info Grid'!D$2:D$33,SMALL(IF('info Grid'!$A$2:$A$33<>0,ROW('info Grid'!A$2:A$33)-ROW('info Grid'!A$2)+1),ROWS('info Grid'!A$2:A33))),\"\")","v":""},{"$f":"IFERROR(INDEX('info Grid'!A$2:A$33,SMALL(IF('info Grid'!$A$2:$A$33<>0,ROW('info Grid'!A$2:A$33)-ROW('info Grid'!A$2)+1),ROWS('info Grid'!A$2:A33))),\"\")","v":""},null,{"$f":"IFERROR(INDEX('info Grid'!B$2:B$33,SMALL(IF('info Grid'!$A$2:$A$33<>0,ROW('info Grid'!A$2:A$33)-ROW('info Grid'!A$2)+1),ROWS('info Grid'!B$2:B33))),\"\")","v":""},null,{"$f":"IFERROR(INDEX('info Grid'!$I$2:$I$33,SMALL(IF('info Grid'!$A$2:$A$33<>0,ROW('info Grid'!A$2:A$33)-ROW('info Grid'!A$2)+1),ROWS('info Grid'!A$2:A33))),\"\")","v":""},null,null,null,null,null,null,null,null,null,null,{"$f":"IFERROR(INDEX('info Grid'!F$2:F$33,SMALL(IF('info Grid'!$A$2:$A$33<>0,ROW('info Grid'!A$2:A$33)-ROW('info Grid'!A$2)+1),ROWS('info Grid'!A$2:A33))),\"\")","v":""},{"$f":"IFERROR(INDEX('info Grid'!G$2:G$33,SMALL(IF('info Grid'!$A$2:$A$33<>0,ROW('info Grid'!A$2:A$33)-ROW('info Grid'!A$2)+1),ROWS('info Grid'!A$2:A33))),\"\")","v":""}]
[null,null,null,null,null,null,null,null,null,null,null,null,null,null,null,null,null,null,null,null,null,null,null,null,null,null,null,null,null,null,null,null,null,null,null,null,null,null,null,null,null,null,null,null,null,null,null,null,null,null,null,null,null,null,null,null,null,null,null,null,null,null,null,null,null,null,null,null,null,null,null,null,null,null,null,null,null,null,{"$f":"IF(CF34<>\"\",33,\"\")","v":""},{"$f":"IFERROR(INDEX('info Grid'!E$2:E$33,SMALL(IF('info Grid'!$A$2:$A$33<>0,ROW('info Grid'!A$2:A$33)-ROW('info Grid'!A$2)+1),ROWS('info Grid'!A$2:A34))),\"\")","v":""},null,{"$f":"IFERROR(INDEX('info Grid'!C$2:C$33,SMALL(IF('info Grid'!$A$2:$A$33<>0,ROW('info Grid'!A$2:A$33)-ROW('info Grid'!A$2)+1),ROWS('info Grid'!A$2:A34))),\"\")","v":""},{"$f":"IFERROR(INDEX('info Grid'!D$2:D$33,SMALL(IF('info Grid'!$A$2:$A$33<>0,ROW('info Grid'!A$2:A$33)-ROW('info Grid'!A$2)+1),ROWS('info Grid'!A$2:A34))),\"\")","v":""},{"$f":"IFERROR(INDEX('info Grid'!A$2:A$33,SMALL(IF('info Grid'!$A$2:$A$33<>0,ROW('info Grid'!A$2:A$33)-ROW('info Grid'!A$2)+1),ROWS('info Grid'!A$2:A34))),\"\")","v":""},null,{"$f":"IFERROR(INDEX('info Grid'!B$2:B$33,SMALL(IF('info Grid'!$A$2:$A$33<>0,ROW('info Grid'!A$2:A$33)-ROW('info Grid'!A$2)+1),ROWS('info Grid'!B$2:B34))),\"\")","v":""},null,{"$f":"IFERROR(INDEX('info Grid'!$I$2:$I$33,SMALL(IF('info Grid'!$A$2:$A$33<>0,ROW('info Grid'!A$2:A$33)-ROW('info Grid'!A$2)+1),ROWS('info Grid'!A$2:A34))),\"\")","v":""},null,null,null,null,null,null,null,null,null,null,{"$f":"IFERROR(INDEX('info Grid'!F$2:F$33,SMALL(IF('info Grid'!$A$2:$A$33<>0,ROW('info Grid'!A$2:A$33)-ROW('info Grid'!A$2)+1),ROWS('info Grid'!A$2:A34))),\"\")","v":""},{"$f":"IFERROR(INDEX('info Grid'!G$2:G$33,SMALL(IF('info Grid'!$A$2:$A$33<>0,ROW('info Grid'!A$2:A$33)-ROW('info Grid'!A$2)+1),ROWS('info Grid'!A$2:A34))),\"\")","v":""}]

{"sheet":"Contractor CP","index":2,"n_rows":50,"n_cols":10,"rows_kept":50,"cut":false,"hidden":false,"merged":[[18,2,20,2],[18,9,20,9],[18,3,18,7],[18,8,20,8]]}
["Prime Contractor"]
["Change Proposal No."]
["(Prime Contractor to include, as backup, a completed form showing cost of work breakdown by Schedule of Values line items)"]
[]
[null,null,"Subtotal Cost for Self Performed Work",null,null,null,null,{"$f":"H50","v":0}]
["03-96-014119","Contractor Fee/Mark Up","Mark Up/Fee (See contract or UGC) ",null,null,null,null,{"$f":"H5*G6","v":0}]
[null,null,"Subtotal for Self Performed Work",null,null,null,null,{"$f":"SUM(H5:H6)","v":0}]
[null,null,"Subtotal Cost for Subcontracted Work",null,null,null,null,{"$f":"I50","v":0}]
["03-96-014119","Contractor Fee/Mark Up","Mark Up/Fee (See contract or UGC) ",null,null,null,null,{"$f":"H8*G9","v":0}]
[null,null,"Subtotal for Subcontracted Work",null,null,null,null,{"$f":"SUM(H8:H9)","v":0}]
[null,null,null,"Total cost of work",null,null,null,{"$f":"H7+H10","v":0}]
[null,"Insurance/Bonds","Cost of Insurance (Builders risk if applicable)",null,null,null,null,{"$f":"G12*H11","v":0}]
[null,"Insurance/Bonds","Cost of Performance & Payment Bond",null,null,null,null,{"$f":"G13*H11","v":0},null,"Additional days"]
["03-95-014110","Insurance & Bonds",null,"Total Bonds and Insurance",null,null,null,{"$f":"SUM(H12:H13)","v":0},null,"requested"]
["03-95-010000","General Conditions","General Conditions (if additional days requested and additional cost)"]
["99-99-999999","Project Contingency","TOTAL VALUE OF PROPOSAL",null,null,null,null,{"$f":"H15+H14+H11","v":0}]
[]
[]
[null,null,"TOTAL COST OF WORK","Self Performed Work",null,null,null,null,"Subcontractor Work Total","TOTAL COST OF WORK"]
[null,null,null,null,"- Payroll Tax, Insurance & Fringe Benefits"]
[null,null,null,"Material","Labor","Labor Mark up","Equipment","Self Performed Total"]
["03-01-000000","General Requirements",{"$f":"H22+I22","v":0},null,null,{"$f":"E22*$D$20","v":0},null,{"$f":"SUM(D22:G22)","v":0},{"$f":"Subcontractor1!M12+Subcontractor2!M12+Subcontractor3!M12","v":0},{"$f":"H22+I22","v":0}]
["03-02-020000","Existing Conditions",{"$f":"H23+I23","v":0},null,null,0,null,{"$f":"SUM(D23:G23)","v":0},{"$f":"Subcontractor1!M13+Subcontractor2!M13+Subcontractor3!M13","v":0},{"$f":"H23+I23","v":0}]
["03-03-030000","Concrete",0,null,null,0,null,0,{"$f":"Subcontractor1!M14+Subcontractor2!M14+Subcontractor3!M14","v":0},0]
["03-04-040000","Masonry",0,null,null,0,null,0,{"$f":"Subcontractor1!M15+Subcontractor2!M15+Subcontractor3!M15","v":0},0]
["03-05-050000","Metals",0,null,null,0,null,0,{"$f":"Subcontractor1!M16+Subcontractor2!M16+Subcontractor3!M16","v":0},0]
["03-06-060000","Wood, Plastics, Composites",0,null,null,0,null,0,{"$f":"Subcontractor1!M17+Subcontractor2!M17+Subcontractor3!M17","v":0},0]
["03-07-070000","Thermal and Moisture Protection",0,null,null,0,null,0,{"$f":"Subcontractor1!M18+Subcontractor2!M18+Subcontractor3!M18","v":0},0]
["03-08-080000","Openings",0,null,null,0,null,0,{"$f":"Subcontractor1!M19+Subcontractor2!M19+Subcontractor3!M19","v":0},0]
["03-09-090000","Finishes",0,null,null,0,null,0,{"$f":"Subcontractor1!M20+Subcontractor2!M20+Subcontractor3!M20","v":0},0]
["03-10-100000","Specialties",0,null,null,0,null,0,{"$f":"Subcontractor1!M21+Subcontractor2!M21+Subcontractor3!M21","v":0},0]
["03-11-110000","Contractor Provided Equipment",0,null,null,0,null,0,{"$f":"Subcontractor1!M22+Subcontractor2!M22+Subcontractor3!M22","v":0},0]
["03-12-120000","Contractor Provided Fixtures and Furnishings",0,null,null,0,null,0,{"$f":"Subcontractor1!M23+Subcontractor2!M23+Subcontractor3!M23","v":0},0]
["03-13-130000","Specialty Construction",0,null,null,0,null,0,{"$f":"Subcontractor1!M24+Subcontractor2!M24+Subcontractor3!M24","v":0},0]
["03-14-140000","Conveying Equipment",0,null,null,0,null,0,{"$f":"Subcontractor1!M25+Subcontractor2!M25+Subcontractor3!M25","v":0},0]
["03-21-210000","Fire Suppression",0,null,null,0,null,0,{"$f":"Subcontractor1!M26+Subcontractor2!M26+Subcontractor3!M26","v":0},0]
["03-22-220000","Plumbing",0,null,null,0,null,0,{"$f":"Subcontractor1!M27+Subcontractor2!M27+Subcontractor3!M27","v":0},0]
["03-23-230000","HVAC",0,null,null,0,null,0,{"$f":"Subcontractor1!M28+Subcontractor2!M28+Subcontractor3!M28","v":0},0]
["03-25-250000","Integrated Automation",0,null,null,0,null,0,{"$f":"Subcontractor1!M29+Subcontractor2!M29+Subcontractor3!M29","v":0},0]
["03-26-260000","Electrical",0,null,null,0,null,0,{"$f":"Subcontractor1!M30+Subcontractor2!M30+Subcontractor3!M30","v":0},0]
["03-27-270000","Contractor Provided Communications",0,null,null,0,null,0,{"$f":"Subcontractor1!M31+Subcontractor2!M31+Subcontractor3!M31","v":0},0]
["03-28-280000","Electronic Safety & Security",0,null,null,0,null,0,{"$f":"Subcontractor1!M32+Subcontractor2!M32+Subcontractor3!M32","v":0},0]
["03-31-310000","Earthwork",0,null,null,0,null,0,{"$f":"Subcontractor1!M33+Subcontractor2!M33+Subcontractor3!M33","v":0},0]
["03-32-320000","Exterior Improvements",0,null,null,0,null,0,{"$f":"Subcontractor1!M34+Subcontractor2!M34+Subcontractor3!M34","v":0},0]
["03-33-330000","Utilities",0,null,null,0,null,0,{"$f":"Subcontractor1!M35+Subcontractor2!M35+Subcontractor3!M35","v":0},0]
["03-34-340000","Transportation",0,null,null,0,null,0,{"$f":"Subcontractor1!M36+Subcontractor2!M36+Subcontractor3!M36","v":0},0]
["03-35-350000","Waterway and Marine Construction",0,null,null,0,null,0,{"$f":"Subcontractor1!M37+Subcontractor2!M37+Subcontractor3!M37","v":0},0]
["03-44-440000","Pollution and Waste Control Equipment",0,null,null,0,null,0,{"$f":"Subcontractor1!M38+Subcontractor2!M38+Subcontractor3!M38","v":0},0]
["03-46-460000","Water and Wastewater Equipment",0,null,null,0,null,0,{"$f":"Subcontractor1!M39+Subcontractor2!M39+Subcontractor3!M39","v":0},0]
[null,null,0,{"$f":"SUM(D22:D49)","v":0},0,0,0,0,{"$f":"SUM(I22:I49)","v":0},0]

{"sheet":"Subcontractor1","index":3,"n_rows":48,"n_cols":42,"rows_kept":48,"cut":false,"hidden":false,"merged":[[9,2,9,8],[6,28,6,34],[7,28,7,34],[6,35,6,41],[7,35,7,41],[9,9,9,11],[6,14,6,20],[7,14,7,20],[6,21,6,27],[7,21,7,27]]}
["Subcontractor Name"]
["Change Proposal No."]
[]
[null,null,null,"Payroll Tax, Insurance & Fringe Benefits on Labor"]
[null,null,null,"Mark-Up for self performed work"]
[null,null,null,"Mark-Up for lower tier subcontractor  "]
[null,null,null,null,null,null,null,null,null,null,null,null,null,null,"Lower Tier Subcontractor Performed Work",null,null,null,null,null,null,"Lower Tier Subcontractor Performed Work",null,null,null,null,null,null,"Lower Tier Subcontractor Performed Work",null,null,null,null,null,null,"Lower Tier Subcontractor Performed Work"]
[null,null,null,null,null,null,null,null,null,null,null,null,null,null,"Insert Subcontractor Name",null,null,null,null,null,null,"Insert Subcontractor Name",null,null,null,null,null,null,"Insert Subcontractor Name",null,null,null,null,null,null,"Insert Subcontractor Name"]
[null,null,null,null,null,null,null,null,null,null,null,null,null,null,null,"- Payroll Tax, Ins, Fringe Benefits",null,null,null,null,null,null,"- Payroll Tax, Ins, Fringe Benefits",null,null,null,null,null,null,"- Payroll Tax, Ins, Fringe Benefits",null,null,null,null,null,null,"- Payroll Tax, Ins, Fringe Benefits"]
[null,null,"Self Performed Work",null,null,null,null,null,null,"Summary of Lower Tiers",null,null,null,null,null,"- Mark up",null,null,null,null,null,null,"- Mark up",null,null,null,null,null,null,"- Mark up",null,null,null,null,null,null,"- Mark up"]
[null,null,"Material","Equipment","Labor","Labor Mark up","Self Perform Subtotal","Mark up ","Subcontractor Subtotal","Lower Tier Work","Markup","Lower Tier Subtotal","TOTAL VALUE OF PROPOSAL",null,"Material","Equipment","Labor","Labor Fringe","Subtotal","Mark up","Total","Material","Equipment","Labor","Labor Fringe","Subtotal","Mark up","Total","Material","Equipment","Labor","Labor Fringe","Subtotal","Mark up","Total","Material","Equipment","Labor","Labor Fringe","Subtotal","Mark up","Total"]
[{"$f":"'Contractor CP'!A22","v":"03-01-000000"},"General Requirements",null,null,null,{"$f":"E12*$C$4","v":0},{"$f":"SUM(C12:F12)","v":0},{"$f":"G12*$C$5","v":0},{"$f":"SUM(G12:H12)","v":0},{"$f":"U12+AB12+AI12+AP12","v":0},{"$f":"J12*$C$6","v":0},{"$f":"SUM(J12:K12)","v":0},{"$f":"I12+L12","v":0},null,null,null,null,{"$f":"Q12*$O$9","v":0},{"$f":"SUM(O12:R12)","v":0},{"$f":"S12*$O$10","v":0},{"$f":"SUM(S12:T12)","v":0},null,null,null,{"$f":"X12*$O$9","v":0},{"$f":"SUM(V12:Y12)","v":0},{"$f":"Z12*$O$10","v":0},{"$f":"SUM(Z12:AA12)","v":0},null,null,null,null,null,null,null,null,null,null,{"$f":"AL12*$O$9","v":0},{"$f":"SUM(AJ12:AM12)","v":0},{"$f":"AN12*$O$10","v":0},{"$f":"SUM(AN12:AO12)","v":0}]
[{"$f":"'Contractor CP'!A23","v":"03-02-020000"},"Existing Conditions",null,null,null,{"$f":"E13*$C$4","v":0},{"$f":"SUM(C13:F13)","v":0},{"$f":"G13*$C$5","v":0},{"$f":"SUM(G13:H13)","v":0},0,{"$f":"J13*$C$6","v":0},{"$f":"SUM(J13:K13)","v":0},0,null,null,null,null,0,0,0,0,null,null,null,0,0,0,0,null,null,null,{"$f":"AE13*$O$9","v":0},{"$f":"SUM(AC13:AF13)","v":0},{"$f":"AG13*$O$10","v":0},{"$f":"SUM(AG13:AH13)","v":0},null,null,null,0,0,0,0]
[{"$f":"'Contractor CP'!A24","v":"03-03-030000"},"Concrete",null,null,null,{"$f":"E14*$C$4","v":0},0,0,0,0,{"$f":"J14*$C$6","v":0},0,0,null,null,null,null,0,0,0,0,null,null,null,0,0,0,0,null,null,null,{"$f":"AE14*$O$9","v":0},0,0,0,null,null,null,0,0,0,0]
[{"$f":"'Contractor CP'!A25","v":"03-04-040000"},"Masonry",null,null,null,0,0,0,0,0,0,0,0,null,null,null,null,0,0,0,0,null,null,null,0,0,0,0,null,null,null,0,0,0,0,null,null,null,0,0,0,0]
[{"$f":"'Contractor CP'!A26","v":"03-05-050000"},"Metals",null,null,null,0,0,0,0,0,0,0,0,null,null,null,null,0,0,0,0,null,null,null,0,0,0,0,null,null,null,0,0,0,0,null,null,null,0,0,0,0]
[{"$f":"'Contractor CP'!A27","v":"03-06-060000"},"Wood, Plastics, Composites",null,null,null,0,0,0,0,0,0,0,0,null,null,null,null,0,0,0,0,null,null,null,0,0,0,0,null,null,null,0,0,0,0,null,null,null,0,0,0,0]
[{"$f":"'Contractor CP'!A28","v":"03-07-070000"},"Thermal and Moisture Protection",null,null,null,0,0,0,0,0,0,0,0,null,null,null,null,0,0,0,0,null,null,null,0,0,0,0,null,null,null,0,0,0,0,null,null,null,0,0,0,0]
[{"$f":"'Contractor CP'!A29","v":"03-08-080000"},"Openings",null,null,null,0,0,0,0,0,0,0,0,null,null,null,null,0,0,0,0,null,null,null,0,0,0,0,null,null,null,0,0,0,0,null,null,null,0,0,0,0]
[{"$f":"'Contractor CP'!A30","v":"03-09-090000"},"Finishes",null,null,null,0,{"$f":"SUM(C20:F20)","v":0},{"$f":"G20*$C$5","v":0},{"$f":"SUM(G20:H20)","v":0},{"$f":"U20+AB20+AI20+AP20","v":0},{"$f":"J20*$C$6","v":0},{"$f":"SUM(J20:K20)","v":0},{"$f":"I20+L20","v":0},null,null,null,null,{"$f":"Q20*$O$9","v":0},{"$f":"SUM(O20:R20)","v":0},{"$f":"S20*$O$10","v":0},{"$f":"SUM(S20:T20)","v":0},null,null,null,{"$f":"X20*$O$9","v":0},{"$f":"SUM(V20:Y20)","v":0},{"$f":"Z20*$O$10","v":0},{"$f":"SUM(Z20:AA20)","v":0},null,null,null,{"$f":"AE20*$O$9","v":0},{"$f":"SUM(AC20:AF20)","v":0},{"$f":"AG20*$O$10","v":0},{"$f":"SUM(AG20:AH20)","v":0},null,null,null,{"$f":"AL20*$O$9","v":0},{"$f":"SUM(AJ20:AM20)","v":0},{"$f":"AN20*$O$10","v":0},{"$f":"SUM(AN20:AO20)","v":0}]
[{"$f":"'Contractor CP'!A31","v":"03-10-100000"},"Specialties",null,null,null,0,0,0,0,0,0,0,0,null,null,null,null,0,0,0,0,null,null,null,0,0,0,0,null,null,null,0,0,0,0,null,null,null,0,0,0,0]
[{"$f":"'Contractor CP'!A32","v":"03-11-110000"},"Contractor Provided Equipment",null,null,null,0,0,0,0,0,0,0,0,null,null,null,null,0,0,0,0,null,null,null,0,0,0,0,null,null,null,0,0,0,0,null,null,null,0,0,0,0]
[{"$f":"'Contractor CP'!A33","v":"03-12-120000"},"Contractor Provided Fixtures and Furnishings",null,null,null,0,0,0,0,0,0,0,0,null,null,null,null,0,0,0,0,null,null,null,0,0,0,0,null,null,null,0,0,0,0,null,null,null,0,0,0,0]
[{"$f":"'Contractor CP'!A34","v":"03-13-130000"},"Specialty Construction",null,null,null,0,0,0,0,0,0,0,0,null,null,null,null,0,0,0,0,null,null,null,0,0,0,0,null,null,null,0,0,0,0,null,null,null,0,0,0,0]
[{"$f":"'Contractor CP'!A35","v":"03-14-140000"},"Conveying Equipment",null,null,null,0,0,0,0,0,0,0,0,null,null,null,null,0,0,0,0,null,null,null,0,0,0,0,null,null,null,0,0,0,0,null,null,null,0,0,0,0]
[{"$f":"'Contractor CP'!A36","v":"03-21-210000"},"Fire Suppression",null,null,null,0,0,0,0,0,0,0,0,null,null,null,null,0,0,0,0,null,null,null,0,0,0,0,null,null,null,0,0,0,0,null,null,null,0,0,0,0]
[{"$f":"'Contractor CP'!A37","v":"03-22-220000"},"Plumbing",null,null,null,0,0,0,0,0,0,0,0,null,null,null,null,0,0,0,0,null,null,null,0,0,0,0,null,null,null,0,0,0,0,null,null,null,0,0,0,0]
[{"$f":"'Contractor CP'!A38","v":"03-23-230000"},"HVAC",null,null,null,0,0,0,0,0,0,0,0,null,null,null,null,0,0,0,0,null,null,null,0,0,0,0,null,null,null,0,0,0,0,null,null,null,0,0,0,0]
[{"$f":"'Contractor CP'!A39","v":"03-25-250000"},"Integrated Automation",null,null,null,0,0,0,0,0,0,0,0,null,null,null,null,0,0,0,0,null,null,null,0,0,0,0,null,null,null,0,0,0,0,null,null,null,0,0,0,0]
[{"$f":"'Contractor CP'!A40","v":"03-26-260000"},"Electrical",null,null,null,0,0,0,0,0,0,0,0,null,null,null,null,0,0,0,0,null,null,null,0,0,0,0,null,null,null,0,0,0,0,null,null,null,0,0,0,0]
[{"$f":"'Contractor CP'!A41","v":"03-27-270000"},"Construction Contractor Provided Communications",null,null,null,0,0,0,0,0,0,0,0,null,null,null,null,0,0,0,0,null,null,null,0,0,0,0,null,null,null,0,0,0,0,null,null,null,0,0,0,0]
[{"$f":"'Contractor CP'!A42","v":"03-28-280000"},"Electronic Safety & Security",null,null,null,0,0,0,0,0,0,0,0,null,null,null,null,0,0,0,0,null,null,null,0,0,0,0,null,null,null,0,0,0,0,null,null,null,0,0,0,0]
[{"$f":"'Contractor CP'!A43","v":"03-31-310000"},"Earthwork",null,null,null,0,0,0,0,0,0,0,0,null,null,null,null,0,0,0,0,null,null,null,0,0,0,0,null,null,null,0,0,0,0,null,null,null,0,0,0,0]
[{"$f":"'Contractor CP'!A44","v":"03-32-320000"},"Exterior Improvements",null,null,null,0,0,0,0,0,0,0,0,null,null,null,null,0,0,0,0,null,null,null,0,0,0,0,null,null,null,0,0,0,0,null,null,null,0,0,0,0]
[{"$f":"'Contractor CP'!A45","v":"03-33-330000"},"Utilities",null,null,null,0,0,0,0,0,0,0,0,null,null,null,null,0,0,0,0,null,null,null,0,0,0,0,null,null,null,0,0,0,0,null,null,null,0,0,0,0]
[{"$f":"'Contractor CP'!A46","v":"03-34-340000"},"Transportation",null,null,null,0,0,0,0,0,0,0,0,null,null,null,null,0,0,0,0,null,null,null,0,0,0,0,null,null,null,0,0,0,0,null,null,null,0,0,0,0]
[{"$f":"'Contractor CP'!A47","v":"03-35-350000"},"Waterway and Marine Construction",null,null,null,0,0,0,0,0,0,0,0,null,null,null,null,0,0,0,0,null,null,null,0,0,0,0,null,null,null,0,0,0,0,null,null,null,0,0,0,0]
[{"$f":"'Contractor CP'!A48","v":"03-44-440000"},"Pollution and Waste Control Equipment",null,null,null,0,0,0,0,0,0,0,0,null,null,null,null,0,0,0,0,null,null,null,0,0,0,0,null,null,null,0,0,0,0,null,null,null,0,0,0,0]
[{"$f":"'Contractor CP'!A49","v":"03-46-460000"},"Water and Wastewater Equipment",null,null,null,0,0,0,0,0,0,0,0,null,null,null,null,0,0,0,0,null,null,null,0,0,0,0,null,null,null,{"$f":"AE39*$O$9","v":0},0,0,0,null,null,null,0,0,0,0]
[null,null,{"$f":"SUM(C12:C39)","v":0},0,0,0,0,0,0,0,0,0,0,null,{"$f":"SUM(O12:O39)","v":0},{"$f":"SUM(P12:P39)","v":0},{"$f":"SUM(Q12:Q39)","v":0},0,{"$f":"SUM(S12:S39)","v":0},0,0,0,0,0,{"$f":"X40*$O$9","v":0},{"$f":"SUM(Z12:Z39)","v":0},0,0,0,0,0,0,{"$f":"SUM(AG12:AG39)","v":0},0,0,0,0,0,0,{"$f":"SUM(AN12:AN39)","v":0},{"$f":"SUM(AO12:AO39)","v":0},0]
[]
[]
[null,null,"These cells check mark up against UH specific UGC limits"]
[null,null,"Self performed",null,"Subcontracted"]
[null,null,{"$f":"IF(I40<10000,0.15,0)","v":0.15},null,{"$f":"IF(L40<10000,0.1,0)","v":0.1}]
[null,null,{"$f":"IF(AND(10000<I40,I40<20000),0.1,0)","v":0},null,{"$f":"IF(AND(10000<L40,L40<20000),0.075,0)","v":0}]
[null,null,{"$f":"IF(I40>20000,0.075,0)","v":0},null,{"$f":"IF(L40>20000,0.05,0)","v":0}]
[null,null,{"$f":"SUM(C45:C47)","v":0.15},null,{"$f":"SUM(E45:E47)","v":0.1}]

{"sheet":"Subcontractor2","index":4,"n_rows":48,"n_cols":42,"rows_kept":48,"cut":false,"hidden":false,"merged":[[6,35,6,41],[7,14,7,20],[7,21,7,27],[7,28,7,34],[7,35,7,41],[9,2,9,8],[9,9,9,11],[6,14,6,20],[6,21,6,27],[6,28,6,34]]}
["Subcontractor Name"]
["Change Proposal No."]
[]
[null,null,null,"Payroll Tax, Insurance & Fringe Benefits on Labor"]
[null,null,null,"Mark-Up for self performed work"]
[null,null,null,"Mark-Up for lower tier subcontractor  "]
[null,null,null,null,null,null,null,null,null,null,null,null,null,null,"Lower Tier Subcontractor Performed Work",null,null,null,null,null,null,"Lower Tier Subcontractor Performed Work",null,null,null,null,null,null,"Lower Tier Subcontractor Performed Work",null,null,null,null,null,null,"Lower Tier Subcontractor Performed Work"]
[null,null,null,null,null,null,null,null,null,null,null,null,null,null,"Insert Subcontractor Name",null,null,null,null,null,null,"Insert Subcontractor Name",null,null,null,null,null,null,"Insert Subcontractor Name",null,null,null,null,null,null,"Insert Subcontractor Name"]
[null,null,null,null,null,null,null,null,null,null,null,null,null,null,null,"- Payroll Tax, Ins, Fringe Benefits",null,null,null,null,null,null,"- Payroll Tax, Ins, Fringe Benefits",null,null,null,null,null,null,"- Payroll Tax, Ins, Fringe Benefits",null,null,null,null,null,null,"- Payroll Tax, Ins, Fringe Benefits"]
[null,null,"Self Performed Work",null,null,null,null,null,null,"Summary of Lower Tiers",null,null,null,null,null,"- Mark up",null,null,null,null,null,null,"- Mark up",null,null,null,null,null,null,"- Mark up",null,null,null,null,null,null,"- Mark up"]
[null,null,"Material","Equipment","Labor","Labor Mark up","Self Perform Subtotal","Mark up ","Subcontractor Subtotal","Lower Tier Work","Markup","Lower Tier Subtotal","TOTAL VALUE OF PROPOSAL",null,"Material","Equipment","Labor","Labor Fringe","Subtotal","Mark up","Total","Material","Equipment","Labor","Labor Fringe","Subtotal","Mark up","Total","Material","Equipment","Labor","Labor Fringe","Subtotal","Mark up","Total","Material","Equipment","Labor","Labor Fringe","Subtotal","Mark up","Total"]
[{"$f":"'Contractor CP'!A22","v":"03-01-000000"},"General Requirements",null,null,null,{"$f":"E12*$C$4","v":0},{"$f":"SUM(C12:F12)","v":0},{"$f":"G12*$C$5","v":0},{"$f":"SUM(G12:H12)","v":0},{"$f":"U12+AB12+AI12+AP12","v":0},{"$f":"J12*$C$6","v":0},{"$f":"SUM(J12:K12)","v":0},{"$f":"I12+L12","v":0},null,null,null,null,{"$f":"Q12*$O$9","v":0},{"$f":"SUM(O12:R12)","v":0},{"$f":"S12*$O$10","v":0},{"$f":"SUM(S12:T12)","v":0},null,null,null,{"$f":"X12*$O$9","v":0},{"$f":"SUM(V12:Y12)","v":0},{"$f":"Z12*$O$10","v":0},{"$f":"SUM(Z12:AA12)","v":0},null,null,null,null,null,null,null,null,null,null,{"$f":"AL12*$O$9","v":0},{"$f":"SUM(AJ12:AM12)","v":0},{"$f":"AN12*$O$10","v":0},{"$f":"SUM(AN12:AO12)","v":0}]
[{"$f":"'Contractor CP'!A23","v":"03-02-020000"},"Existing Conditions",null,null,null,{"$f":"E13*$C$4","v":0},{"$f":"SUM(C13:F13)","v":0},{"$f":"G13*$C$5","v":0},{"$f":"SUM(G13:H13)","v":0},0,{"$f":"J13*$C$6","v":0},{"$f":"SUM(J13:K13)","v":0},0,null,null,null,null,0,0,0,0,null,null,null,0,0,0,0,null,null,null,{"$f":"AE13*$O$9","v":0},{"$f":"SUM(AC13:AF13)","v":0},{"$f":"AG13*$O$10","v":0},{"$f":"SUM(AG13:AH13)","v":0},null,null,null,0,0,0,0]
[{"$f":"'Contractor CP'!A24","v":"03-03-030000"},"Concrete",null,null,null,0,0,0,0,0,0,0,0,null,null,null,null,0,0,0,0,null,null,null,0,0,0,0,null,null,null,0,0,0,0,null,null,null,0,0,0,0]
[{"$f":"'Contractor CP'!A25","v":"03-04-040000"},"Masonry",null,null,null,0,0,0,0,0,0,0,0,null,null,null,null,0,0,0,0,null,null,null,0,0,0,0,null,null,null,0,0,0,0,null,null,null,0,0,0,0]
[{"$f":"'Contractor CP'!A26","v":"03-05-050000"},"Metals",null,null,null,0,0,0,0,0,0,0,0,null,null,null,null,0,0,0,0,null,null,null,0,0,0,0,null,null,null,0,0,0,0,null,null,null,0,0,0,0]
[{"$f":"'Contractor CP'!A27","v":"03-06-060000"},"Wood, Plastics, Composites",null,null,null,0,0,0,0,0,0,0,0,null,null,null,null,0,0,0,0,null,null,null,0,0,0,0,null,null,null,0,0,0,0,null,null,null,0,0,0,0]
[{"$f":"'Contractor CP'!A28","v":"03-07-070000"},"Thermal and Moisture Protection",null,null,null,0,0,0,0,0,0,0,0,null,null,null,null,0,0,0,0,null,null,null,0,0,0,0,null,null,null,0,0,0,0,null,null,null,0,0,0,0]
[{"$f":"'Contractor CP'!A29","v":"03-08-080000"},"Openings",null,null,null,0,0,0,0,0,0,0,0,null,null,null,null,0,0,0,0,null,null,null,0,0,0,0,null,null,null,0,0,0,0,null,null,null,0,0,0,0]
[{"$f":"'Contractor CP'!A30","v":"03-09-090000"},"Finishes",null,null,null,0,0,0,0,0,0,0,0,null,null,null,null,0,0,0,0,null,null,null,0,0,0,0,null,null,null,0,0,0,0,null,null,null,0,0,0,0]
[{"$f":"'Contractor CP'!A31","v":"03-10-100000"},"Specialties",null,null,null,0,0,0,0,0,0,0,0,null,null,null,null,0,0,0,0,null,null,null,0,0,0,0,null,null,null,0,0,0,0,null,null,null,0,0,0,0]
[{"$f":"'Contractor CP'!A32","v":"03-11-110000"},"Contractor Provided Equipment",null,null,null,0,0,0,0,0,0,0,0,null,null,null,null,0,0,0,0,null,null,null,0,0,0,0,null,null,null,0,0,0,0,null,null,null,0,0,0,0]
[{"$f":"'Contractor CP'!A33","v":"03-12-120000"},"Contractor Provided Fixtures and Furnishings",null,null,null,0,0,0,0,0,0,0,0,null,null,null,null,0,0,0,0,null,null,null,0,0,0,0,null,null,null,0,0,0,0,null,null,null,0,0,0,0]
[{"$f":"'Contractor CP'!A34","v":"03-13-130000"},"Specialty Construction",null,null,null,0,0,0,0,0,0,0,0,null,null,null,null,0,0,0,0,null,null,null,0,0,0,0,null,null,null,0,0,0,0,null,null,null,0,0,0,0]
[{"$f":"'Contractor CP'!A35","v":"03-14-140000"},"Conveying Equipment",null,null,null,0,0,0,0,0,0,0,0,null,null,null,null,0,0,0,0,null,null,null,0,0,0,0,null,null,null,0,0,0,0,null,null,null,0,0,0,0]
[{"$f":"'Contractor CP'!A36","v":"03-21-210000"},"Fire Suppression",null,null,null,0,0,0,0,0,0,0,0,null,null,null,null,0,0,0,0,null,null,null,0,0,0,0,null,null,null,0,0,0,0,null,null,null,0,0,0,0]
[{"$f":"'Contractor CP'!A37","v":"03-22-220000"},"Plumbing",null,null,null,0,0,0,0,0,0,0,0,null,null,null,null,0,0,0,0,null,null,null,0,0,0,0,null,null,null,0,0,0,0,null,null,null,0,0,0,0]
[{"$f":"'Contractor CP'!A38","v":"03-23-230000"},"HVAC",null,null,null,0,0,0,0,0,0,0,0,null,null,null,null,0,0,0,0,null,null,null,0,0,0,0,null,null,null,0,0,0,0,null,null,null,0,0,0,0]
[{"$f":"'Contractor CP'!A39","v":"03-25-250000"},"Integrated Automation",null,null,null,0,0,0,0,0,0,0,0,null,null,null,null,0,0,0,0,null,null,null,0,0,0,0,null,null,null,0,0,0,0,null,null,null,0,0,0,0]
[{"$f":"'Contractor CP'!A40","v":"03-26-260000"},"Electrical",null,null,null,0,0,0,0,0,0,0,0,null,null,null,null,0,0,0,0,null,null,null,0,0,0,0,null,null,null,0,0,0,0,null,null,null,0,0,0,0]
[{"$f":"'Contractor CP'!A41","v":"03-27-270000"},"Construction Contractor Provided Communications",null,null,null,0,0,0,0,0,0,0,0,null,null,null,null,0,0,0,0,null,null,null,0,0,0,0,null,null,null,0,0,0,0,null,null,null,0,0,0,0]
[{"$f":"'Contractor CP'!A42","v":"03-28-280000"},"Electronic Safety & Security",null,null,null,0,0,0,0,0,0,0,0,null,null,null,null,0,0,0,0,null,null,null,0,0,0,0,null,null,null,0,0,0,0,null,null,null,0,0,0,0]
[{"$f":"'Contractor CP'!A43","v":"03-31-310000"},"Earthwork",null,null,null,0,0,0,0,0,0,0,0,null,null,null,null,0,0,0,0,null,null,null,0,0,0,0,null,null,null,0,0,0,0,null,null,null,0,0,0,0]
[{"$f":"'Contractor CP'!A44","v":"03-32-320000"},"Exterior Improvements",null,null,null,0,0,0,0,0,0,0,0,null,null,null,null,0,0,0,0,null,null,null,0,0,0,0,null,null,null,0,0,0,0,null,null,null,0,0,0,0]
[{"$f":"'Contractor CP'!A45","v":"03-33-330000"},"Utilities",null,null,null,0,0,0,0,0,0,0,0,null,null,null,null,0,0,0,0,null,null,null,0,0,0,0,null,null,null,0,0,0,0,null,null,null,0,0,0,0]
[{"$f":"'Contractor CP'!A46","v":"03-34-340000"},"Transportation",null,null,null,0,0,0,0,0,0,0,0,null,null,null,null,0,0,0,0,null,null,null,0,0,0,0,null,null,null,0,0,0,0,null,null,null,0,0,0,0]
[{"$f":"'Contractor CP'!A47","v":"03-35-350000"},"Waterway and Marine Construction",null,null,null,0,0,0,0,0,0,0,0,null,null,null,null,0,0,0,0,null,null,null,0,0,0,0,null,null,null,0,0,0,0,null,null,null,0,0,0,0]
[{"$f":"'Contractor CP'!A48","v":"03-44-440000"},"Pollution and Waste Control Equipment",null,null,null,0,0,0,0,0,0,0,0,null,null,null,null,0,0,0,0,null,null,null,0,0,0,0,null,null,null,0,0,0,0,null,null,null,0,0,0,0]
[{"$f":"'Contractor CP'!A49","v":"03-46-460000"},"Water and Wastewater Equipment",null,null,null,0,0,0,0,0,0,0,0,null,null,null,null,0,0,0,0,null,null,null,0,0,0,0,null,null,null,0,0,0,0,null,null,null,0,0,0,0]
[null,null,{"$f":"SUM(C12:C39)","v":0},0,0,0,0,0,0,0,0,0,0,null,{"$f":"SUM(O12:O39)","v":0},{"$f":"SUM(P12:P39)","v":0},{"$f":"SUM(Q12:Q39)","v":0},0,{"$f":"SUM(S12:S39)","v":0},0,0,0,0,0,0,{"$f":"SUM(Z12:Z39)","v":0},0,0,0,0,0,0,{"$f":"SUM(AG12:AG39)","v":0},0,0,0,0,0,0,{"$f":"SUM(AN12:AN39)","v":0},{"$f":"SUM(AO12:AO39)","v":0},0]
[]
[]
[null,null,"These cells check mark up against UH specific UGC limits"]
[null,null,"Self performed",null,"Subcontracted"]
[null,null,{"$f":"IF(I40<10000,0.15,0)","v":0.15},null,{"$f":"IF(L40<10000,0.1,0)","v":0.1}]
[null,null,{"$f":"IF(AND(10000<I40,I40<20000),0.1,0)","v":0},null,{"$f":"IF(AND(10000<L40,L40<20000),0.075,0)","v":0}]
[null,null,{"$f":"IF(I40>20000,0.075,0)","v":0},null,{"$f":"IF(L40>20000,0.05,0)","v":0}]
[null,null,{"$f":"SUM(C45:C47)","v":0.15},null,{"$f":"SUM(E45:E47)","v":0.1}]

{"sheet":"Subcontractor3","index":5,"n_rows":48,"n_cols":42,"rows_kept":48,"cut":false,"hidden":false,"merged":[[9,2,9,8],[9,9,9,11],[6,14,6,20],[6,21,6,27],[6,28,6,34],[6,35,6,41],[7,14,7,20],[7,21,7,27],[7,28,7,34],[7,35,7,41]]}
["Subcontractor Name"]
["Change Proposal No."]
[]
[null,null,null,"Payroll Tax, Insurance & Fringe Benefits on Labor"]
[null,null,null,"Mark-Up for self performed work"]
[null,null,null,"Mark-Up for lower tier subcontractor  "]
[null,null,null,null,null,null,null,null,null,null,null,null,null,null,"Lower Tier Subcontractor Performed Work",null,null,null,null,null,null,"Lower Tier Subcontractor Performed Work",null,null,null,null,null,null,"Lower Tier Subcontractor Performed Work",null,null,null,null,null,null,"Lower Tier Subcontractor Performed Work"]
[null,null,null,null,null,null,null,null,null,null,null,null,null,null,"Insert Subcontractor Name",null,null,null,null,null,null,"Insert Subcontractor Name",null,null,null,null,null,null,"Insert Subcontractor Name",null,null,null,null,null,null,"Insert Subcontractor Name"]
[null,null,null,null,null,null,null,null,null,null,null,null,null,null,null,"- Payroll Tax, Ins, Fringe Benefits",null,null,null,null,null,null,"- Payroll Tax, Ins, Fringe Benefits",null,null,null,null,null,null,"- Payroll Tax, Ins, Fringe Benefits",null,null,null,null,null,null,"- Payroll Tax, Ins, Fringe Benefits"]
[null,null,"Self Performed Work",null,null,null,null,null,null,"Summary of Lower Tiers",null,null,null,null,null,"- Mark up",null,null,null,null,null,null,"- Mark up",null,null,null,null,null,null,"- Mark up",null,null,null,null,null,null,"- Mark up"]
[null,null,"Material","Equipment","Labor","Labor Mark up","Self Perform Subtotal","Mark up ","Subcontractor Subtotal","Lower Tier Work","Markup","Lower Tier Subtotal","TOTAL VALUE OF PROPOSAL",null,"Material","Equipment","Labor","Labor Fringe","Subtotal","Mark up","Total","Material","Equipment","Labor","Labor Fringe","Subtotal","Mark up","Total","Material","Equipment","Labor","Labor Fringe","Subtotal","Mark up","Total","Material","Equipment","Labor","Labor Fringe","Subtotal","Mark up","Total"]
[{"$f":"'Contractor CP'!A22","v":"03-01-000000"},"General Requirements",null,null,null,{"$f":"E12*$C$4","v":0},{"$f":"SUM(C12:F12)","v":0},{"$f":"G12*$C$5","v":0},{"$f":"SUM(G12:H12)","v":0},{"$f":"U12+AB12+AI12+AP12","v":0},{"$f":"J12*$C$6","v":0},{"$f":"SUM(J12:K12)","v":0},{"$f":"I12+L12","v":0},null,null,null,null,{"$f":"Q12*$O$9","v":0},{"$f":"SUM(O12:R12)","v":0},{"$f":"S12*$O$10","v":0},{"$f":"SUM(S12:T12)","v":0},null,null,null,{"$f":"X12*$O$9","v":0},{"$f":"SUM(V12:Y12)","v":0},{"$f":"Z12*$O$10","v":0},{"$f":"SUM(Z12:AA12)","v":0},null,null,null,null,null,null,null,null,null,null,{"$f":"AL12*$O$9","v":0},{"$f":"SUM(AJ12:AM12)","v":0},{"$f":"AN12*$O$10","v":0},{"$f":"SUM(AN12:AO12)","v":0}]
[{"$f":"'Contractor CP'!A23","v":"03-02-020000"},"Existing Conditions",null,null,null,{"$f":"E13*$C$4","v":0},{"$f":"SUM(C13:F13)","v":0},{"$f":"G13*$C$5","v":0},{"$f":"SUM(G13:H13)","v":0},0,{"$f":"J13*$C$6","v":0},{"$f":"SUM(J13:K13)","v":0},0,null,null,null,null,0,0,0,0,null,null,null,0,0,0,0,null,null,null,{"$f":"AE13*$O$9","v":0},{"$f":"SUM(AC13:AF13)","v":0},{"$f":"AG13*$O$10","v":0},{"$f":"SUM(AG13:AH13)","v":0},null,null,null,0,0,0,0]
[{"$f":"'Contractor CP'!A24","v":"03-03-030000"},"Concrete",null,null,null,0,0,0,0,0,0,0,0,null,null,null,null,0,0,0,0,null,null,null,0,0,0,0,null,null,null,0,0,0,0,null,null,null,0,0,0,0]
[{"$f":"'Contractor CP'!A25","v":"03-04-040000"},"Masonry",null,null,null,0,0,0,0,0,0,0,0,null,null,null,null,0,0,0,0,null,null,null,0,0,0,0,null,null,null,0,0,0,0,null,null,null,0,0,0,0]
[{"$f":"'Contractor CP'!A26","v":"03-05-050000"},"Metals",null,null,null,0,0,0,0,0,0,0,0,null,null,null,null,0,0,0,0,null,null,null,0,0,0,0,null,null,null,0,0,0,0,null,null,null,0,0,0,0]
[{"$f":"'Contractor CP'!A27","v":"03-06-060000"},"Wood, Plastics, Composites",null,null,null,0,0,0,0,0,0,0,0,null,null,null,null,0,0,0,0,null,null,null,0,0,0,0,null,null,null,0,0,0,0,null,null,null,0,0,0,0]
[{"$f":"'Contractor CP'!A28","v":"03-07-070000"},"Thermal and Moisture Protection",null,null,null,0,0,0,0,0,0,0,0,null,null,null,null,0,0,0,0,null,null,null,0,0,0,0,null,null,null,0,0,0,0,null,null,null,0,0,0,0]
[{"$f":"'Contractor CP'!A29","v":"03-08-080000"},"Openings",null,null,null,0,0,0,0,0,0,0,0,null,null,null,null,0,0,0,0,null,null,null,0,0,0,0,null,null,null,0,0,0,0,null,null,null,0,0,0,0]
[{"$f":"'Contractor CP'!A30","v":"03-09-090000"},"Finishes",null,null,null,0,0,0,0,0,0,0,0,null,null,null,null,0,0,0,0,null,null,null,0,0,0,0,null,null,null,0,0,0,0,null,null,null,0,0,0,0]
[{"$f":"'Contractor CP'!A31","v":"03-10-100000"},"Specialties",null,null,null,0,0,0,0,0,0,0,0,null,null,null,null,0,0,0,0,null,null,null,0,0,0,0,null,null,null,0,0,0,0,null,null,null,0,0,0,0]
[{"$f":"'Contractor CP'!A32","v":"03-11-110000"},"Contractor Provided Equipment",null,null,null,0,0,0,0,0,0,0,0,null,null,null,null,0,0,0,0,null,null,null,0,0,0,0,null,null,null,0,0,0,0,null,null,null,0,0,0,0]
[{"$f":"'Contractor CP'!A33","v":"03-12-120000"},"Contractor Provided Fixtures and Furnishings",null,null,null,0,0,0,0,0,0,0,0,null,null,null,null,0,0,0,0,null,null,null,0,0,0,0,null,null,null,0,0,0,0,null,null,null,0,0,0,0]
[{"$f":"'Contractor CP'!A34","v":"03-13-130000"},"Specialty Construction",null,null,null,0,0,0,0,0,0,0,0,null,null,null,null,0,0,0,0,null,null,null,0,0,0,0,null,null,null,0,0,0,0,null,null,null,0,0,0,0]
[{"$f":"'Contractor CP'!A35","v":"03-14-140000"},"Conveying Equipment",null,null,null,0,0,0,0,0,0,0,0,null,null,null,null,0,0,0,0,null,null,null,0,0,0,0,null,null,null,0,0,0,0,null,null,null,0,0,0,0]
[{"$f":"'Contractor CP'!A36","v":"03-21-210000"},"Fire Suppression",null,null,null,0,0,0,0,0,0,0,0,null,null,null,null,0,0,0,0,null,null,null,0,0,0,0,null,null,null,0,0,0,0,null,null,null,0,0,0,0]
[{"$f":"'Contractor CP'!A37","v":"03-22-220000"},"Plumbing",null,null,null,0,0,0,0,0,0,0,0,null,null,null,null,0,0,0,0,null,null,null,0,0,0,0,null,null,null,0,0,0,0,null,null,null,0,0,0,0]
[{"$f":"'Contractor CP'!A38","v":"03-23-230000"},"HVAC",null,null,null,0,0,0,0,0,0,0,0,null,null,null,null,0,0,0,0,null,null,null,0,0,0,0,null,null,null,0,0,0,0,null,null,null,0,0,0,0]
[{"$f":"'Contractor CP'!A39","v":"03-25-250000"},"Integrated Automation",null,null,null,0,0,0,0,0,0,0,0,null,null,null,null,0,0,0,0,null,null,null,0,0,0,0,null,null,null,0,0,0,0,null,null,null,0,0,0,0]
[{"$f":"'Contractor CP'!A40","v":"03-26-260000"},"Electrical",null,null,null,0,0,0,0,0,0,0,0,null,null,null,null,0,0,0,0,null,null,null,0,0,0,0,null,null,null,0,0,0,0,null,null,null,0,0,0,0]
[{"$f":"'Contractor CP'!A41","v":"03-27-270000"},"Construction Contractor Provided Communications",null,null,null,0,0,0,0,0,0,0,0,null,null,null,null,0,0,0,0,null,null,null,0,0,0,0,null,null,null,0,0,0,0,null,null,null,0,0,0,0]
[{"$f":"'Contractor CP'!A42","v":"03-28-280000"},"Electronic Safety & Security",null,null,null,0,0,0,0,0,0,0,0,null,null,null,null,0,0,0,0,null,null,null,0,0,0,0,null,null,null,0,0,0,0,null,null,null,0,0,0,0]
[{"$f":"'Contractor CP'!A43","v":"03-31-310000"},"Earthwork",null,null,null,0,0,0,0,0,0,0,0,null,null,null,null,0,0,0,0,null,null,null,0,0,0,0,null,null,null,0,0,0,0,null,null,null,0,0,0,0]
[{"$f":"'Contractor CP'!A44","v":"03-32-320000"},"Exterior Improvements",null,null,null,0,0,0,0,0,0,0,0,null,null,null,null,0,0,0,0,null,null,null,0,0,0,0,null,null,null,0,0,0,0,null,null,null,0,0,0,0]
[{"$f":"'Contractor CP'!A45","v":"03-33-330000"},"Utilities",null,null,null,0,0,0,0,0,0,0,0,null,null,null,null,0,0,0,0,null,null,null,0,0,0,0,null,null,null,0,0,0,0,null,null,null,0,0,0,0]
[{"$f":"'Contractor CP'!A46","v":"03-34-340000"},"Transportation",null,null,null,0,0,0,0,0,0,0,0,null,null,null,null,0,0,0,0,null,null,null,0,0,0,0,null,null,null,0,0,0,0,null,null,null,0,0,0,0]
[{"$f":"'Contractor CP'!A47","v":"03-35-350000"},"Waterway and Marine Construction",null,null,null,0,0,0,0,0,0,0,0,null,null,null,null,0,0,0,0,null,null,null,0,0,0,0,null,null,null,0,0,0,0,null,null,null,0,0,0,0]
[{"$f":"'Contractor CP'!A48","v":"03-44-440000"},"Pollution and Waste Control Equipment",null,null,null,0,0,0,0,0,0,0,0,null,null,null,null,0,0,0,0,null,null,null,0,0,0,0,null,null,null,0,0,0,0,null,null,null,0,0,0,0]
[{"$f":"'Contractor CP'!A49","v":"03-46-460000"},"Water and Wastewater Equipment",null,null,null,0,0,0,0,0,0,0,0,null,null,null,null,0,0,0,0,null,null,null,0,0,0,0,null,null,null,0,0,0,0,null,null,null,0,0,0,0]
[null,null,{"$f":"SUM(C12:C39)","v":0},0,0,0,0,0,0,0,0,0,0,null,{"$f":"SUM(O12:O39)","v":0},{"$f":"SUM(P12:P39)","v":0},{"$f":"SUM(Q12:Q39)","v":0},0,{"$f":"SUM(S12:S39)","v":0},null,null,{"$f":"SUM(V12:V39)","v":0},{"$f":"SUM(W12:W39)","v":0},{"$f":"SUM(X12:X39)","v":0},0,{"$f":"SUM(Z12:Z39)","v":0},null,null,{"$f":"SUM(AC12:AC39)","v":0},{"$f":"SUM(AD12:AD39)","v":0},{"$f":"SUM(AE12:AE39)","v":0},0,{"$f":"SUM(AG12:AG39)","v":0},null,null,{"$f":"SUM(AJ12:AJ39)","v":0},{"$f":"SUM(AK12:AK39)","v":0},{"$f":"SUM(AL12:AL39)","v":0},0,{"$f":"SUM(AN12:AN39)","v":0}]
[]
[]
[null,null,"These cells check mark up against UH specific UGC limits"]
[null,null,"Self performed",null,"Subcontracted"]
[null,null,{"$f":"IF(I40<10000,0.15,0)","v":0.15},null,{"$f":"IF(L40<10000,0.1,0)","v":0.1}]
[null,null,{"$f":"IF(AND(10000<I40,I40<20000),0.1,0)","v":0},null,{"$f":"IF(AND(10000<L40,L40<20000),0.075,0)","v":0}]
[null,null,{"$f":"IF(I40>20000,0.075,0)","v":0},null,{"$f":"IF(L40>20000,0.05,0)","v":0}]
[null,null,{"$f":"SUM(C45:C47)","v":0.15},null,{"$f":"SUM(E45:E47)","v":0.1}]

{"sheet":"Roll Up","index":6,"n_rows":41,"n_cols":3,"rows_kept":41,"cut":false,"hidden":true,"merged":[]}
["This Worksheet provides a summary of the CP costs by Cost Code in a format that can be uploaded or cut and pasted into PMWeb."]
[]
["Contractor Name",{"$f":"'Contractor CP'!B1","v":0}]
["OCO Number"]
["Total Value of Proposals",{"$f":"C41","v":0}]
["Total days claimed"]
[]
[null,null,"TOTAL Value"]
["03-01-","Contractor Fee and mark up"]
["03-01-","General Conditions"]
["03-01-014110","Insurance & Bonds"]
["03-01-","Contractor Provided Moving Expenses"]
["03-01-014123","Permits & Fees"]
["03-02-000000","Existing Conditions"]
["03-03-000000","Concrete"]
["03-04-000000","Masonry"]
["03-05-000000","Metals"]
["03-06-000000","Wood, Plastics, Composites"]
["03-07-000000","Thermal and Moisture Protection"]
["03-08-000000","Openings"]
["03-09-000000","Finishes"]
["03-10-000000","Specialties"]
["03-11-000000","Contractor Provided Equipment"]
["03-12-000000","Contractor Provided Fixtures and Furnishings"]
["03-13-000000","Specialty Construction"]
["03-14-000000","Conveying Equipment"]
["03-21-000000","Fire Suppression"]
["03-22-000000","Plumbing"]
["03-23-000000","HVAC"]
["03-25-000000","Integrated Automation"]
["03-26-000000","Electrical"]
["03-27-000000","Construction Contractor Provided Communications"]
["03-28-000000","Electronic Safety & Security"]
["03-31-000000","Earthwork"]
["03-32-000000","Exterior Improvements"]
["03-33-000000","Utilities"]
["03-34-000000","Transportation"]
["03-35-000000","Waterway and Marine Construction"]
["03-44-000000","Pollution and Waste Control Equipment"]
["03-46-000000","Water and Wastewater Equipment"]
[null,null,{"$f":"SUM(C9:C40)","v":0}]

{"sheet":"info Grid","index":7,"n_rows":33,"n_cols":9,"rows_kept":33,"cut":false,"hidden":true,"merged":[]}
["Amount","Cost Code","Description"]
[{"$f":"'Contractor CP'!H15","v":0},"03-95-010000","General Conditions (less Insurance & Bonds)","USD - Dollars (USA)",0,0,false,0,{"$f":"'Contractor CP'!J15","v":0}]
[{"$f":"'Contractor CP'!H14","v":0},"03-95-014110","Insurance & Bonds","USD - Dollars (USA)",0,0,false,0]
[{"$f":"'Contractor CP'!H6+'Contractor CP'!H9","v":0},"03-96-014119","Contractor Fee & Mark-up","USD - Dollars (USA)",0,0,false,0]
[{"$f":"'Contractor CP'!C22","v":0},"03-01-000000","General Requirements","USD - Dollars (USA)",0,0,false,0]
[{"$f":"'Contractor CP'!C23","v":0},"03-02-020000","Existing Conditions","USD - Dollars (USA)",0,0,false,0]
[{"$f":"'Contractor CP'!C24","v":0},"03-03-030000","Concrete","USD - Dollars (USA)",0,0,false,0]
[{"$f":"'Contractor CP'!C25","v":0},"03-04-040000","Masonry","USD - Dollars (USA)",0,0,false,0]
[{"$f":"'Contractor CP'!C26","v":0},"03-05-050000","Metals","USD - Dollars (USA)",0,0,false,0]
[{"$f":"'Contractor CP'!C27","v":0},"03-06-060000","Wood, Plastics, Composites","USD - Dollars (USA)",0,0,false,0]
[{"$f":"'Contractor CP'!C28","v":0},"03-07-070000","Thermal and Moisture Protection","USD - Dollars (USA)",0,0,false,0]
[{"$f":"'Contractor CP'!C29","v":0},"03-08-080000","Openings","USD - Dollars (USA)",0,0,false,0]
[{"$f":"'Contractor CP'!C30","v":0},"03-09-090000","Finishes","USD - Dollars (USA)",0,0,false,0]
[{"$f":"'Contractor CP'!C31","v":0},"03-10-100000","Specialties","USD - Dollars (USA)",0,0,false,0]
[{"$f":"'Contractor CP'!C32","v":0},"03-11-110000","Contractor Provided Equipment","USD - Dollars (USA)",0,0,false,0]
[{"$f":"'Contractor CP'!C33","v":0},"03-12-120000","Contractor Provided Fixtures and Furnishings","USD - Dollars (USA)",0,0,false,0]
[{"$f":"'Contractor CP'!C34","v":0},"03-13-130000","Specialty Construction","USD - Dollars (USA)",0,0,false,0]
[{"$f":"'Contractor CP'!C35","v":0},"03-14-140000","Conveying Equipment","USD - Dollars (USA)",0,0,false,0]
[{"$f":"'Contractor CP'!C36","v":0},"03-21-210000","Fire Suppression","USD - Dollars (USA)",0,0,false,0]
[{"$f":"'Contractor CP'!C37","v":0},"03-22-220000","Plumbing","USD - Dollars (USA)",0,0,false,0]
[{"$f":"'Contractor CP'!C38","v":0},"03-23-230000","HVAC","USD - Dollars (USA)",0,0,false,0]
[{"$f":"'Contractor CP'!C39","v":0},"03-25-250000","Integrated Automation","USD - Dollars (USA)",0,0,false,0]
[{"$f":"'Contractor CP'!C40","v":0},"03-26-260000","Electrical","USD - Dollars (USA)",0,0,false,0]
[{"$f":"'Contractor CP'!C41","v":0},"03-27-270000","Contractor Provided Communications","USD - Dollars (USA)",0,0,false,0]
[{"$f":"'Contractor CP'!C42","v":0},"03-28-280000","Electronic Safety & Security","USD - Dollars (USA)",0,0,false,0]
[{"$f":"'Contractor CP'!C43","v":0},"03-31-310000","Earthwork","USD - Dollars (USA)",0,0,false,0]
[{"$f":"'Contractor CP'!C44","v":0},"03-32-320000","Exterior Improvements","USD - Dollars (USA)",0,0,false,0]
[{"$f":"'Contractor CP'!C45","v":0},"03-33-330000","Utilities","USD - Dollars (USA)",0,0,false,0]
[{"$f":"'Contractor CP'!C46","v":0},"03-34-340000","Transportation","USD - Dollars (USA)",0,0,false,0]
[{"$f":"'Contractor CP'!C47","v":0},"03-35-350000","Waterway and Marine Construction","USD - Dollars (USA)",0,0,false,0]
[{"$f":"'Contractor CP'!C48","v":0},"03-44-440000","Pollution and Waste Control Equipment","USD - Dollars (USA)",0,0,false,0]
[{"$f":"'Contractor CP'!C49","v":0},"03-46-460000","Water and Wastewater Equipment","USD - Dollars (USA)",0,0,false,0]
[{"$f":"-'Contractor CP'!H16","v":0},"99-99-999999","Project Contingency","USD - Dollars (USA)",0,0,false,0]